Workbook

Sheet 第５表 県計
A1: 第5表 地域振興局別・人工林天然林別・資源構成表
A3: 県計(人工林) | O3: 単位 面積 : ha、蓄積 成長量 : ㎥
B4: 樹種 | C4: 針 葉 樹 | J4: 広 葉 樹 | O4: 計
C5: ス ギ | D5: ヒ ノ キ | E5: サ ワ ラ | F5: ア カ マ ツ | G5: カ ラ マ ツ | H5: そ の 他 針 | I5: 小 計 | J5: ク ヌ ギ | K5: ブ ナ | L5: ナ ラ | M5: そ の 他 広 | N5: 小 計
A6: 齢級
A7: 1 | B7: 面積 | C7: 21.65 | D7: 71.81 | E7: 0.4 | F7: 22.37 | G7: 1020.39 | H7: 0 | I7: 1136.62 | J7: 0.52 | K7: 0.1 | L7: 77.52 | M7: 110.28 | N7: 188.42 | O7: 1325.04
B8: 蓄積 | C8: 0 | D8: 0 | E8: 0 | F8: 0 | G8: 0 | H8: 0 | I8: 0 | J8: 0 | K8: 0 | L8: 0 | M8: 0 | N8: 0 | O8: 0
B9: 成長 | C9: 0 | D9: 0 | E9: 0 | F9: 0 | G9: 0 | H9: 0 | I9: 0 | J9: 0 | K9: 0 | L9: 0 | M9: 0 | N9: 0 | O9: 0
A10: 2 | B10: 面積 | C10: 6.55 | D10: 90.35 | E10: 0.31 | F10: 1.96 | G10: 353.82 | H10: 5.58 | I10: 458.57 | J10: 0.2 | K10: 2.81 | L10: 61.31 | M10: 59.69 | N10: 124.01 | O10: 582.58
B11: 蓄積 | C11: 0 | D11: 0 | E11: 0 | F11: 0 | G11: 0 | H11: 0 | I11: 0 | J11: 11 | K11: 0 | L11: 736 | M11: 684 | N11: 1431 | O11: 1431
B12: 成長 | C12: 0 | D12: 0 | E12: 0 | F12: 0 | G12: 0 | H12: 0 | I12: 0 | J12: 2.9 | K12: 0 | L12: 103 | M12: 95 | N12: 200.9 | O12: 200.9
A13: 3 | B13: 面積 | C13: 18.52 | D13: 227.79 | E13: 2.24 | F13: 2.73 | G13: 65.07 | H13: 0.48 | I13: 316.83 | J13: 0 | K13: 6.74 | L13: 23.32 | M13: 72.27 | N13: 102.33 | O13: 419.16
B14: 蓄積 | C14: 1671 | D14: 11496 | E14: 108 | F14: 157 | G14: 8974 | H14: 25 | I14: 22431 | J14: 0 | K14: 28 | L14: 540 | M14: 1572 | N14: 2140 | O14: 24571
B15: 成長 | C15: 343.4 | D15: 2357.4 | E15: 20.8 | F15: 21.2 | G15: 783.7 | H15: 3.2 | I15: 3529.7 | J15: 0 | K15: 5.9 | L15: 47 | M15: 140.8 | N15: 193.7 | O15: 3723.4
A16: 4 | B16: 面積 | C16: 84.7 | D16: 713.69 | E16: 9.96 | F16: 8.26 | G16: 84.19 | H16: 1.51 | I16: 902.31 | J16: 11.14 | K16: 1.31 | L16: 40.82 | M16: 121.17 | N16: 174.44 | O16: 1076.75
B17: 蓄積 | C17: 11760 | D17: 56857 | E17: 741 | F17: 646 | G17: 9565 | H17: 107 | I17: 79676 | J17: 366 | K17: 96 | L17: 1411 | M17: 5408 | N17: 7281 | O17: 86957
B18: 成長 | C18: 1238.6 | D18: 5378.6 | E18: 70.5 | F18: 53.3 | G18: 574.2 | H18: 8.8 | I18: 7324 | J18: 17.9 | K18: 9.7 | L18: 94.7 | M18: 365 | N18: 487.3 | O18: 7811.3
A19: 5 | B19: 面積 | C19: 145.79 | D19: 1093.53 | E19: 1.12 | F19: 35.86 | G19: 190.31 | H19: 19.29 | I19: 1485.9 | J19: 1.1 | K19: 13.2 | L19: 56.02 | M19: 217.81 | N19: 288.13 | O19: 1774.03
B20: 蓄積 | C20: 25557 | D20: 142056 | E20: 118 | F20: 5956 | G20: 27586 | H20: 4126 | I20: 205399 | J20: 67 | K20: 397 | L20: 3761 | M20: 13347 | N20: 17572 | O20: 222971
B21: 成長 | C21: 1786 | D21: 8749.2 | E21: 7.4 | F21: 310.1 | G21: 1325 | H21: 279.4 | I21: 12457.1 | J21: 2.1 | K21: 31.4 | L21: 190.4 | M21: 682.2 | N21: 906.1 | O21: 13363.2
A22: 6 | B22: 面積 | C22: 319.37 | D22: 1917.58 | E22: 1.49 | F22: 49.13 | G22: 299.58 | H22: 43.13 | I22: 2630.28 | J22: 1.94 | K22: 0 | L22: 31.14 | M22: 130.7 | N22: 163.78 | O22: 2794.06
B23: 蓄積 | C23: 82919 | D23: 311083 | E23: 1026 | F23: 9316 | G23: 51796 | H23: 9409 | I23: 465549 | J23: 237 | K23: 736 | L23: 3718 | M23: 11415 | N23: 16106 | O23: 481655
B24: 成長 | C24: 3918.7 | D24: 14035.5 | E24: 56 | F24: 357.9 | G24: 1348.4 | H24: 493 | I24: 20209.5 | J24: 7.1 | K24: 49.2 | L24: 147 | M24: 464.1 | N24: 667.4 | O24: 20876.9
A25: 7 | B25: 面積 | C25: 770.13 | D25: 3337.25 | E25: 2.61 | F25: 172.14 | G25: 724.62 | H25: 85.72 | I25: 5092.47 | J25: 4.19 | K25: 2.04 | L25: 65.64 | M25: 118.31 | N25: 190.18 | O25: 5282.65
B26: 蓄積 | C26: 224603 | D26: 596486 | E26: 444 | F26: 25698 | G26: 147210 | H26: 15781 | I26: 1010222 | J26: 301 | K26: 856 | L26: 4822 | M26: 8584 | N26: 14563 | O26: 1024785
B27: 成長 | C27: 8419.1 | D27: 21438.5 | E27: 15.1 | F27: 710 | G27: 3435.8 | H27: 702.5 | I27: 34721 | J27: 4.1 | K27: 49.6 | L27: 152.9 | M27: 267.3 | N27: 473.9 | O27: 35194.9
A28: 8 | B28: 面積 | C28: 1647.79 | D28: 4960.01 | E28: 4.76 | F28: 269.49 | G28: 1323.16 | H28: 262.3 | I28: 8467.51 | J28: 0.63 | K28: 0 | L28: 23.56 | M28: 137.46 | N28: 161.65 | O28: 8629.16
B29: 蓄積 | C29: 547436 | D29: 966889 | E29: 723 | F29: 47689 | G29: 282234 | H29: 47472 | I29: 1892443 | J29: 54 | K29: 0 | L29: 1618 | M29: 9630 | N29: 11302 | O29: 1903745
B30: 成長 | C30: 17225.1 | D30: 27029.7 | E30: 23.5 | F30: 1005.1 | G30: 6216.6 | H30: 1785.5 | I30: 53285.5 | J30: 0.3 | K30: 0 | L30: 47.4 | M30: 290.1 | N30: 337.8 | O30: 53623.3
A31: 9 | B31: 面積 | C31: 2974.65 | D31: 7088.94 | E31: 3.01 | F31: 1022.73 | G31: 2548.19 | H31: 454.43 | I31: 14091.95 | J31: 0 | K31: 0 | L31: 8.73 | M31: 130.84 | N31: 139.57 | O31: 14231.52
B32: 蓄積 | C32: 1095542 | D32: 1447899 | E32: 610 | F32: 189647 | G32: 582273 | H32: 52956 | I32: 3368927 | J32: 0 | K32: 0 | L32: 662 | M32: 10019 | N32: 10681 | O32: 3379608
B33: 成長 | C33: 24279 | D33: 33679.4 | E33: 13.8 | F33: 2920.8 | G33: 10905.8 | H33: 1726.2 | I33: 73525 | J33: 0 | K33: 0 | L33: 17.8 | M33: 277.7 | N33: 295.5 | O33: 73820.5
A34: 10 | B34: 面積 | C34: 4152.27 | D34: 7586.97 | E34: 14.24 | F34: 3453.19 | G34: 6325.75 | H34: 634.44 | I34: 22166.86 | J34: 0.24 | K34: 0 | L34: 0.46 | M34: 74.83 | N34: 75.53 | O34: 22242.39
B35: 蓄積 | C35: 1630337 | D35: 1681666 | E35: 3211 | F35: 683535 | G35: 1581257 | H35: 77125 | I35: 5657131 | J35: 17 | K35: 0 | L35: 42 | M35: 6064 | N35: 6123 | O35: 5663254
B36: 成長 | C36: 27177.2 | D36: 31811.9 | E36: 61.2 | F36: 9046.4 | G36: 24144.4 | H36: 2170.4 | I36: 94411.5 | J36: 0 | K36: 0 | L36: 1 | M36: 151.1 | N36: 152.1 | O36: 94563.6
A37: 11 | B37: 面積 | C37: 6375.91 | D37: 6410.85 | E37: 33.46 | F37: 9567.64 | G37: 13671.5 | H37: 491.37 | I37: 36550.73 | J37: 0.2 | K37: 0.01 | L37: 0.67 | M37: 203.14 | N37: 204.02 | O37: 36754.75
B38: 蓄積 | C38: 2649820 | D38: 1544117 | E38: 7276 | F38: 2008151 | G38: 3621482 | H38: 68328 | I38: 9899174 | J38: 21 | K38: 1 | L38: 34 | M38: 14785 | N38: 14841 | O38: 9914015
B39: 成長 | C39: 33354.5 | D39: 25639.6 | E39: 121.4 | F39: 22481.8 | G39: 48052.2 | H39: 1567.7 | I39: 131217.2 | J39: 0 | K39: 0 | L39: 0.7 | M39: 282.8 | N39: 283.5 | O39: 131500.7
A40: 12 | B40: 面積 | C40: 8795.79 | D40: 3490.21 | E40: 33.28 | F40: 14608.67 | G40: 31262 | H40: 138.37 | I40: 58328.32 | J40: 0 | K40: 0 | L40: 3.29 | M40: 156.76 | N40: 160.05 | O40: 58488.37
B41: 蓄積 | C41: 3824882 | D41: 910294 | E41: 9100 | F41: 3222792 | G41: 8647699 | H41: 22732 | I41: 16637499 | J41: 0 | K41: 0 | L41: 498 | M41: 14390 | N41: 14888 | O41: 16652387
B42: 成長 | C42: 43463 | D42: 12557.1 | E42: 138.3 | F42: 31550.6 | G42: 100807.1 | H42: 444.5 | I42: 188960.6 | J42: 0 | K42: 0 | L42: 9.6 | M42: 265.9 | N42: 275.5 | O42: 189236.1
A43: 13 | B43: 面積 | C43: 9554.23 | D43: 2916.82 | E43: 91.97 | F43: 9853.4 | G43: 47113.02 | H43: 333.01 | I43: 69862.45 | J43: 3.09 | K43: 50.81 | L43: 10.82 | M43: 162.32 | N43: 227.04 | O43: 70089.49
B44: 蓄積 | C44: 4211486 | D44: 776163 | E44: 24356 | F44: 2217340 | G44: 13514386 | H44: 54963 | I44: 20798694 | J44: 265 | K44: 2847 | L44: 1169 | M44: 14389 | N44: 18670 | O44: 20817364
B45: 成長 | C45: 46697.8 | D45: 10431.3 | E45: 358.4 | F45: 21053.1 | G45: 150156 | H45: 1029.8 | I45: 229726.4 | J45: 0 | K45: 68.5 | L45: 19.3 | M45: 234.4 | N45: 322.2 | O45: 230048.6
A46: 14 | B46: 面積 | C46: 7451.57 | D46: 2136.81 | E46: 77.41 | F46: 4001.29 | G46: 41086.4 | H46: 204.73 | I46: 54958.21 | J46: 0.15 | K46: 0 | L46: 5.76 | M46: 239.4 | N46: 245.31 | O46: 55203.52
B47: 蓄積 | C47: 3387617 | D47: 591438 | E47: 21605 | F47: 934953 | G47: 12296514 | H47: 38667 | I47: 17270794 | J47: 15 | K47: 0 | L47: 650 | M47: 21977 | N47: 22642 | O47: 17293436
B48: 成長 | C48: 30600 | D48: 7175 | E48: 280.7 | F48: 7517.6 | G48: 116006 | H48: 640.4 | I48: 162219.7 | J48: 0.1 | K48: 0 | L48: 7.4 | M48: 250.6 | N48: 258.1 | O48: 162477.8
A49: 15 以上 | B49: 面積 | C49: 12866.87 | D49: 8753.83 | E49: 506.62 | F49: 1712.91 | G49: 31231.05 | H49: 303.62 | I49: 55374.9 | J49: 0.19 | K49: 12.32 | L49: 9.65 | M49: 580.02 | N49: 602.18 | O49: 55977.08
B50: 蓄積 | C50: 6446998 | D50: 2631440 | E50: 160599 | F50: 414960 | G50: 9585171 | H50: 61745 | I50: 19300913 | J50: 16 | K50: 1108 | L50: 1156 | M50: 54143 | N50: 56423 | O50: 19357336
B51: 成長 | C51: 27545.1 | D51: 7447.8 | E51: 323.1 | F51: 2252.8 | G51: 49596.8 | H51: 488.7 | I51: 87654.3 | J51: 0.1 | K51: 9.2 | L51: 10.6 | M51: 255.2 | N51: 275.1 | O51: 87929.4
A52: 計 | B52: 面積 | C52: 55185.79 | D52: 50796.44 | E52: 782.88 | F52: 44781.77 | G52: 177299.05 | H52: 2977.98 | I52: 331823.91 | J52: 23.59 | K52: 89.34 | L52: 418.71 | M52: 2515 | N52: 3046.64 | O52: 334870.55
B53: 蓄積 | C53: 24140628 | D53: 11667884 | E53: 229917 | F53: 9760840 | G53: 50356147 | H53: 453436 | I53: 96608852 | J53: 1370 | K53: 6069 | L53: 20817 | M53: 186407 | N53: 214663 | O53: 96823515
B54: 成長 | C54: 266047.5 | D54: 207731 | E54: 1490.2 | F54: 99280.7 | G54: 513352 | H54: 11340.1 | I54: 1099241.5 | J54: 34.6 | K54: 223.5 | L54: 848.8 | M54: 4022.2 | N54: 5129.1 | O54: 1104370.6

Sheet 佐久
A1: 第5表 地域振興局別・人工林天然林別・資源構成表
A3: 佐久地域振興局(人工林) | O3: 単位 面積 : ha、蓄積 成長量 : ㎥
B4: 樹種 | C4: 針 葉 樹 | J4: 広 葉 樹 | O4: 計
C5: ス ギ | D5: ヒ ノ キ | E5: サ ワ ラ | F5: ア カ マ ツ | G5: カ ラ マ ツ | H5: そ の 他 針 | I5: 小 計 | J5: ク ヌ ギ | K5: ブ ナ | L5: ナ ラ | M5: そ の 他 広 | N5: 小 計
A6: 齢級
A7: 1 | B7: 面積 | D7: 6.68 | F7: 2.16 | G7: 594.95 | I7: 603.79 | L7: 10.29 | M7: 9.96 | N7: 20.25 | O7: =SUM(N7,I7) -> 624.04
B8: 蓄積 | D8: 0 | F8: 0 | G8: 0 | I8: 0 | L8: 0 | M8: 0 | N8: 0 | O8: =SUM(N8,I8) -> 0
B9: 成長 | D9: 0 | F9: 0 | G9: 0 | I9: 0 | L9: 0 | M9: 0 | N9: 0 | O9: 0
A10: 2 | B10: 面積 | C10: 0.09 | D10: 13.79 | E10: 0.31 | G10: 207.45 | H10: 0.43 | I10: 222.07 | K10: 0.43 | L10: 11 | M10: 2.98 | N10: 14.41 | O10: 236.48
B11: 蓄積 | C11: 0 | D11: 0 | E11: 0 | G11: 0 | H11: 0 | I11: 0 | K11: 0 | L11: 145 | M11: 33 | N11: 178 | O11: 178
B12: 成長 | C12: 0 | D12: 0 | E12: 0 | G12: 0 | H12: 0 | I12: 0 | K12: 0 | L12: 21 | M12: 4.6 | N12: 25.6 | O12: 25.6
A13: 3 | B13: 面積 | C13: 0.01 | D13: 15.25 | F13: 0.43 | G13: 26.23 | I13: 41.92 | L13: 9.35 | M13: 7.07 | N13: 16.42 | O13: 58.34
B14: 蓄積 | C14: 1 | D14: 651 | F14: 24 | G14: 3208 | H14: 13 | I14: 3897 | L14: 205 | M14: 170 | N14: 375 | O14: 4272
B15: 成長 | C15: 0.2 | D15: 143 | F15: 3.2 | G15: 242.5 | H15: 1.7 | I15: 390.6 | L15: 17.6 | M15: 14.3 | N15: 31.9 | O15: 422.5
A16: 4 | B16: 面積 | C16: 0.2 | D16: 32.78 | E16: 0.4 | F16: 0.24 | G16: 44.6 | I16: 78.22 | J16: 0.21 | L16: 8.86 | M16: 35.32 | N16: 44.39 | O16: 122.61
B17: 蓄積 | C17: 34 | D17: 3398 | E17: 21 | F17: 23 | G17: 5046 | I17: 8522 | J17: 8 | L17: 263 | M17: 1496 | N17: 1767 | O17: 10289
B18: 成長 | C18: 2.8 | D18: 360.6 | E18: 2.4 | F18: 1.9 | G18: 299.5 | I18: 667.2 | J18: 0.5 | L18: 18.1 | M18: 101.4 | N18: 120 | O18: 787.2
A19: 5 | B19: 面積 | C19: 2.27 | D19: 49.84 | E19: 0.26 | F19: 5.29 | G19: 21.91 | H19: 2.13 | I19: 81.7 | L19: 6.32 | M19: 42.07 | N19: 48.39 | O19: 130.09
B20: 蓄積 | C20: 504 | D20: 7044 | E20: 31 | F20: 630 | G20: 3765 | H20: 578 | I20: 12552 | L20: 375 | M20: 2414 | N20: 2789 | O20: 15341
B21: 成長 | C21: 25.5 | D21: 500.5 | E21: 2.2 | F21: 31.6 | G21: 173.7 | H21: 41.1 | I21: 774.6 | L21: 19.2 | M21: 123.5 | N21: 142.7 | O21: 917.3
A22: 6 | B22: 面積 | C22: 2.69 | D22: 64.72 | E22: 0.95 | F22: 8.58 | G22: 74.09 | H22: 11.74 | I22: 162.77 | L22: 1.61 | M22: 43.11 | N22: 44.72 | O22: 207.49
B23: 蓄積 | C23: 1240 | D23: 17559 | E23: 966 | F23: 1163 | G23: 15191 | H23: 4128 | I23: 40247 | L23: 604 | M23: 3142 | N23: 3746 | O23: 43993
B24: 成長 | C24: 44.7 | D24: 970.2 | E24: 53.2 | F24: 45.2 | G24: 349.3 | H24: 218.5 | I24: 1681.1 | L24: 24.2 | M24: 129.1 | N24: 153.3 | O24: 1834.4
A25: 7 | B25: 面積 | C25: 2.09 | D25: 162.6 | F25: 10.57 | G25: 261.26 | H25: 21.4 | I25: 457.92 | K25: 0.48 | M25: 10.82 | N25: 11.3 | O25: 469.22
B26: 蓄積 | C26: 891 | D26: 35761 | F26: 1585 | G26: 57551 | H26: 5968 | I26: 101756 | K26: 21 | M26: 762 | N26: 783 | O26: 102539
B27: 成長 | C27: 25.2 | D27: 1613.4 | F27: 39.8 | G27: 1276.7 | H27: 259.5 | I27: 3214.6 | K27: 1.2 | M27: 23.5 | N27: 24.7 | O27: 3239.3
A28: 8 | B28: 面積 | C28: 8.16 | D28: 147.63 | E28: 0.89 | F28: 46.93 | G28: 392.01 | H28: 17.97 | I28: 613.59 | L28: 1.23 | M28: 15.75 | N28: 16.98 | O28: 630.57
B29: 蓄積 | C29: 2766 | D29: 43930 | E29: 186 | F29: 8237 | G29: 92189 | H29: 15455 | I29: 162763 | L29: 79 | M29: 1100 | N29: 1179 | O29: 163942
B30: 成長 | C30: 64 | D30: 1627.5 | E30: 6.8 | F30: 166.7 | G30: 1936 | H30: 592 | I30: 4393 | L30: 2.4 | M30: 33.5 | N30: 35.9 | O30: 4428.9
A31: 9 | B31: 面積 | C31: 16.78 | D31: 271.01 | E31: 0.35 | F31: 174.13 | G31: 949.29 | H31: 36.9 | I31: 1448.46 | L31: 0.3 | M31: 39.49 | N31: 39.79 | O31: 1488.25
B32: 蓄積 | C32: 5507 | D32: 70366 | E32: 88 | F32: 33656 | G32: 254994 | H32: 6280 | I32: 370891 | L32: 24 | M32: 3155 | N32: 3179 | O32: 374070
B33: 成長 | C33: 102.8 | D33: 2127.2 | E33: 2.6 | F33: 509.8 | G33: 4646.8 | H33: 221.8 | I33: 7611 | L33: 0.8 | M33: 88.3 | N33: 89.1 | O33: 7700.1
A34: 10 | B34: 面積 | C34: 18.25 | D34: 68.19 | E34: 0.91 | F34: 373.02 | G34: 2036.02 | H34: 30.03 | I34: 2526.42 | M34: 8.99 | N34: 8.99 | O34: 2535.41
B35: 蓄積 | C35: 7306 | D35: 20702 | E35: 255 | F35: 78080 | G35: 595032 | H35: 6170 | I35: 707545 | M35: 555 | N35: 555 | O35: 708100
B36: 成長 | C36: 109.4 | D36: 599.9 | E36: 7.5 | F36: 1017.7 | G36: 8971.6 | H36: 181.2 | I36: 10887.3 | M36: 14.1 | N36: 14.1 | O36: 10901.4
A37: 11 | B37: 面積 | C37: 65.24 | D37: 54.14 | E37: 0.54 | F37: 710.58 | G37: 4125.99 | H37: 50.93 | I37: 5007.42 | M37: 14.79 | N37: 14.79 | O37: 5022.21
B38: 蓄積 | C38: 26499 | D38: 17700 | E38: 217 | F38: 153377 | G38: 1248739 | H38: 10049 | I38: 1456581 | M38: 930 | N38: 930 | O38: 1457511
B39: 成長 | C39: 344.9 | D39: 425.6 | E39: 5.1 | F39: 1700.2 | G39: 15035.4 | H39: 242.4 | I39: 17753.6 | M39: 17.7 | N39: 17.7 | O39: 17771.3
A40: 12 | B40: 面積 | C40: 86.08 | D40: 8.42 | E40: 0.46 | F40: 873.35 | G40: 6628.1 | H40: 10.95 | I40: 7607.36 | L40: 0.07 | M40: 2.67 | N40: 2.74 | O40: 7610.1
B41: 蓄積 | C41: 36130 | D41: 2874 | E41: 171 | F41: 200509 | G41: 2128878 | H41: 2524 | I41: 2371086 | L41: 188 | M41: 237 | N41: 425 | O41: 2371511
B42: 成長 | C42: 399.9 | D42: 61.2 | E42: 3.5 | F42: 1819.4 | G42: 19591.1 | H42: 52.3 | I42: 21927.4 | L42: 3.7 | M42: 4.3 | N42: 8 | O42: 21935.4
A43: 13 | B43: 面積 | C43: 141.87 | D43: 7.72 | E43: 13.52 | F43: 528.33 | G43: 11038.85 | H43: 17.77 | I43: 11748.06 | L43: 9.06 | M43: 24.75 | N43: 33.81 | O43: 11781.87
B44: 蓄積 | C44: 61686 | D44: 2756 | E44: 4167 | F44: 123150 | G44: 3642676 | H44: 4640 | I44: 3839075 | L44: 970 | M44: 2528 | N44: 3498 | O44: 3842573
B45: 成長 | C45: 667.6 | D45: 56.2 | E45: 81.2 | F45: 1095.5 | G45: 31713.9 | H45: 88 | I45: 33702.4 | L45: 16.4 | M45: 42.3 | N45: 58.7 | O45: 33761.1
A46: 14 | B46: 面積 | C46: 23.62 | D46: 5.24 | E46: 7.59 | F46: 114.56 | G46: 9246.57 | H46: 34.11 | I46: 9431.69 | L46: 2.77 | M46: 42.8 | N46: 45.57 | O46: 9477.26
B47: 蓄積 | C47: 10565 | D47: 2005 | E47: 3030 | F47: 27093 | G47: 3155586 | H47: 9296 | I47: 3207575 | L47: 286 | M47: 4907 | N47: 5193 | O47: 3212768
B48: 成長 | C48: 96.3 | D48: 32.9 | E48: 52.7 | F48: 208.4 | G48: 21999 | H48: 157.7 | I48: 22547 | L48: 3.7 | M48: 52.7 | N48: 56.4 | O48: 22603.4
A49: 15 以上 | B49: 面積 | C49: 76.4 | D49: 120.13 | E49: 62.74 | F49: 33.51 | G49: 6526.81 | H49: 9.21 | I49: 6828.8 | L49: 0.2 | M49: 41.17 | N49: 41.37 | O49: 6870.17
B50: 蓄積 | C50: 36653 | D50: 56691 | E50: 26451 | F50: 8483 | G50: 2226480 | H50: 3201 | I50: 2357959 | L50: 26 | M50: 3194 | N50: 3220 | O50: 2361179
B51: 成長 | C51: 28.5 | D51: 67.2 | E51: 76.6 | F51: 36.3 | G51: 7579.1 | H51: 34.8 | I51: 7822.5 | L51: 0 | M51: 7.2 | N51: 7.2 | O51: 7829.7
A52: 計 | B52: 面積 | C52: =SUM(C7,C10,C13,C16,C19,C22,C25,C28,C31,C34,C37,C40,C43,C46,C49) -> 443.75 | D52: 1028.14 | E52: 88.92 | F52: 2881.68 | G52: 42174.13 | H52: 243.57 | I52: 46860.19 | J52: =SUM(J7,J10,J13,J16,J19,J22,J25,J28,J31,J34,J37,J40,J43,J46,J49) -> 0.21 | K52: =SUM(K7,K10,K13,K16,K19,K22,K25,K28,K31,K34,K37,K40,K43,K46,K49) -> 0.91 | L52: =SUM(L7,L10,L13,L16,L19,L22,L25,L28,L31,L34,L37,L40,L43,L46,L49) -> 61.06 | M52: =SUM(M7,M10,M13,M16,M19,M22,M25,M28,M31,M34,M37,M40,M43,M46,M49) -> 341.74 | N52: =SUM(J52:M52) -> 403.92 | O52: 47264.11
B53: 蓄積 | C53: 189782 | D53: 281437 | E53: 35583 | F53: 636010 | G53: 13429335 | H53: 68302 | I53: 14640449 | J53: =SUM(J8,J11,J14,J17,J20,J23,J26,J29,J32,J35,J38,J41,J44,J47,J50) -> 8 | K53: 21 | L53: 3165 | M53: 24623 | N53: =SUM(J53:M53) -> 27817 | O53: 14668266
B54: 成長 | C54: 1911.8 | D54: 8585.4 | E54: 293.8 | F54: 6675.7 | G54: 113814.6 | H54: 2091 | I54: 133372.3 | J54: 0.5 | K54: 1.2 | L54: 127.1 | M54: 656.5 | N54: =SUM(J54:M54) -> 785.3 | O54: 134157.6

Sheet 上田
A1: 第5表 地域振興局別・人工林天然林別・資源構成表
A3: 上田地域振興局(人工林) | O3: 単位 面積 : ha、蓄積 成長量 : ㎥
B4: 樹種 | C4: 針 葉 樹 | J4: 広 葉 樹 | O4: 計
C5: ス ギ | D5: ヒ ノ キ | E5: サ ワ ラ | F5: ア カ マ ツ | G5: カ ラ マ ツ | H5: そ の 他 針 | I5: 小 計 | J5: ク ヌ ギ | K5: ブ ナ | L5: ナ ラ | M5: そ の 他 広 | N5: 小 計
A6: 齢級
A7: 1 | B7: 面積 | C7: 0.07 | D7: 0.03 | F7: 0.21 | G7: 214.75 | I7: 215.06 | K7: 0.1 | L7: 8.59 | M7: 37.86 | N7: 46.55 | O7: =SUM(N7,I7) -> 261.61
B8: 蓄積 | C8: 0 | D8: 0 | F8: 0 | G8: 0 | I8: 0 | K8: 0 | L8: 0 | M8: 0 | N8: 0 | O8: =SUM(N8,I8) -> 0
B9: 成長 | C9: 0 | D9: 0 | F9: 0 | G9: 0 | I9: 0 | K9: 0 | L9: 0 | M9: 0 | N9: 0 | O9: 0
A10: 2 | B10: 面積 | D10: 11.6 | G10: 61.08 | I10: 72.68 | L10: 10.12 | M10: 14.06 | N10: 24.18 | O10: 96.86
B11: 蓄積 | D11: 0 | G11: 0 | I11: 0 | L11: 162 | M11: 179 | N11: 341 | O11: 341
B12: 成長 | D12: 0 | G12: 0 | I12: 0 | L12: 22.8 | M12: 23.9 | N12: 46.7 | O12: 46.7
A13: 3 | B13: 面積 | D13: 5.21 | F13: 0.42 | G13: 2.75 | I13: 8.38 | L13: 1.44 | M13: 14.47 | N13: 15.91 | O13: 24.29
B14: 蓄積 | D14: 230 | F14: 24 | G14: 169 | I14: 423 | L14: 38 | M14: 294 | N14: 332 | O14: 755
B15: 成長 | D15: 51.1 | F15: 3.3 | G15: 15.6 | I15: 70 | L15: 3.2 | M15: 25.2 | N15: 28.4 | O15: 98.4
A16: 4 | B16: 面積 | C16: 0.54 | D16: 58.12 | F16: 1.17 | G16: 17.76 | I16: 77.59 | J16: 1.34 | L16: 2.8 | M16: 30.1 | N16: 34.24 | O16: 111.83
B17: 蓄積 | C17: 90 | D17: 4513 | F17: 108 | G17: 2528 | I17: 7239 | J17: 43 | L17: 209 | M17: 1111 | N17: 1363 | O17: 8602
B18: 成長 | C18: 7.3 | D18: 475.8 | F18: 8.9 | G18: 148.9 | I18: 640.9 | J18: 2.9 | L18: 14.8 | M18: 75.7 | N18: 93.4 | O18: 734.3
A19: 5 | B19: 面積 | C19: 2.34 | D19: 80.89 | F19: 7.79 | G19: 51.06 | H19: 0.34 | I19: 142.42 | K19: 3.02 | L19: 27.85 | M19: 42.37 | N19: 73.24 | O19: 215.66
B20: 蓄積 | C20: 519 | D20: 10574 | F20: 663 | G20: 8472 | H20: 31 | I20: 20259 | K20: 72 | L20: 1530 | M20: 2173 | N20: 3775 | O20: 24034
B21: 成長 | C21: 26.2 | D21: 751.1 | F21: 37.9 | G21: 390.1 | H21: 2.2 | I21: 1207.5 | K21: 5.6 | L21: 78.5 | M21: 110.9 | N21: 195 | O21: 1402.5
A22: 6 | B22: 面積 | C22: 11.45 | D22: 70.91 | F22: 18.84 | G22: 51.21 | H22: 1.8 | I22: 154.21 | L22: 8.31 | M22: 22.22 | N22: 30.53 | O22: 184.74
B23: 蓄積 | C23: 3414 | D23: 17688 | F23: 2783 | G23: 11222 | H23: 186 | I23: 35293 | J23: 93 | K23: 628 | L23: 533 | M23: 2325 | N23: 3579 | O23: 38872
B24: 成長 | C24: 122.6 | D24: 976.8 | F24: 103.1 | G24: 257.9 | H24: 9.8 | I24: 1470.2 | J24: 3.8 | K24: 42.1 | L24: 22 | M24: 95.2 | N24: 163.1 | O24: 1633.3
A25: 7 | B25: 面積 | C25: 25.35 | D25: 265.49 | F25: 18.35 | G25: 153.17 | H25: 1.73 | I25: 464.09 | L25: 36.39 | M25: 45.35 | N25: 81.74 | O25: 545.83
B26: 蓄積 | C26: 15239 | D26: 57386 | F26: 3151 | G26: 35643 | H26: 352 | I26: 111771 | K26: 801 | L26: 2554 | M26: 2803 | N26: 6158 | O26: 117929
B27: 成長 | C27: 423.8 | D27: 2582.3 | F27: 75.5 | G27: 783.3 | H27: 15.1 | I27: 3880 | K27: 46.5 | L27: 80 | M27: 86.9 | N27: 213.4 | O27: 4093.4
A28: 8 | B28: 面積 | C28: 65.55 | D28: 295.9 | F28: 60.26 | G28: 189.09 | H28: 39.01 | I28: 649.81 | L28: 7.97 | M28: 23.1 | N28: 31.07 | O28: 680.88
B29: 蓄積 | C29: 22143 | D29: 75778 | F29: 11053 | G29: 48448 | H29: 6389 | I29: 163811 | L29: 530 | M29: 1577 | N29: 2107 | O29: 165918
B30: 成長 | C30: 509.2 | D30: 2806.6 | F30: 222.2 | G30: 1017.2 | H30: 242.8 | I30: 4798 | L30: 15.9 | M30: 47.7 | N30: 63.6 | O30: 4861.6
A31: 9 | B31: 面積 | C31: 93.6 | D31: 414.05 | F31: 137.48 | G31: 144.77 | H31: 2.99 | I31: 792.89 | L31: 1.22 | M31: 14.51 | N31: 15.73 | O31: 808.62
B32: 蓄積 | C32: 35085 | D32: 109057 | F32: 27135 | G32: 40708 | H32: 3691 | I32: 215676 | L32: 94 | M32: 1160 | N32: 1254 | O32: 216930
B33: 成長 | C33: 631.9 | D33: 3285.1 | F33: 408.9 | G33: 732.3 | H33: 129.4 | I33: 5187.6 | L33: 2.6 | M33: 32.4 | N33: 35 | O33: 5222.6
A34: 10 | B34: 面積 | C34: 160.87 | D34: 258.46 | F34: 407.39 | G34: 284.33 | H34: 10.48 | I34: 1121.53 | L34: 0.37 | M34: 1.8 | N34: 2.17 | O34: 1123.7
B35: 蓄積 | C35: 63727 | D35: 75035 | F35: 85300 | G35: 85976 | H35: 2080 | I35: 312118 | L35: 33 | M35: 117 | N35: 150 | O35: 312268
B36: 成長 | C36: 955.9 | D36: 2171.6 | F36: 1110.3 | G36: 1290.9 | H36: 61.6 | I36: 5590.3 | L36: 0.8 | M36: 3.2 | N36: 4 | O36: 5594.3
A37: 11 | B37: 面積 | C37: 251.79 | D37: 155.64 | E37: 0.23 | F37: 975.74 | G37: 706.76 | H37: 15.88 | I37: 2106.04 | M37: 2.81 | N37: 2.81 | O37: 2108.85
B38: 蓄積 | C38: 105757 | D38: 51812 | E38: 79 | F38: 213822 | G38: 221344 | H38: 3394 | I38: 596208 | M38: 271 | N38: 271 | O38: 596479
B39: 成長 | C39: 1377.8 | D39: 1242.8 | E39: 1.9 | F39: 2358.8 | G39: 2665.8 | H39: 80.8 | I39: 7727.9 | M39: 5.3 | N39: 5.3 | O39: 7733.2
A40: 12 | B40: 面積 | C40: 258.69 | D40: 65.5 | E40: 3.73 | F40: 1628.74 | G40: 2146.42 | H40: 13.17 | I40: 4116.25 | M40: 4.62 | N40: 4.62 | O40: 4120.87
B41: 蓄積 | C41: 114077 | D41: 23561 | E41: 1318 | F41: 375767 | G41: 714182 | H41: 3572 | I41: 1232477 | M41: 471 | N41: 471 | O41: 1232948
B42: 成長 | C42: 1254.4 | D42: 496.5 | E42: 27.9 | F42: 3390.6 | G42: 6467.2 | H42: 71.9 | I42: 11708.5 | M42: 8.4 | N42: 8.4 | O42: 11716.9
A43: 13 | B43: 面積 | C43: 393.8 | D43: 17.09 | E43: 1.83 | F43: 1322.1 | G43: 3715.44 | H43: 21.78 | I43: 5472.04 | L43: 0.55 | M43: 12.37 | N43: 12.92 | O43: 5484.96
B44: 蓄積 | C44: 179551 | D44: 6552 | E44: 716 | F44: 311276 | G44: 1274785 | H44: 5148 | I44: 1778028 | L44: 65 | M44: 1364 | N44: 1429 | O44: 1779457
B45: 成長 | C45: 1896.3 | D45: 135.7 | E45: 14.7 | F45: 2759.6 | G45: 10941.8 | H45: 102.9 | I45: 15851 | L45: 0.9 | M45: 20.5 | N45: 21.4 | O45: 15872.4
A46: 14 | B46: 面積 | C46: 311.21 | D46: 23.86 | E46: 1.55 | F46: 274.87 | G46: 2779.3 | H46: 8.87 | I46: 3399.66 | J46: 0.07 | L46: 1.31 | M46: 27.31 | N46: 28.69 | O46: 3428.35
B47: 蓄積 | C47: 146132 | D47: 10089 | E47: 674 | F47: 66671 | G47: 976115 | H47: 2768 | I47: 1202449 | J47: 9 | L47: 167 | M47: 2318 | N47: 2494 | O47: 1204943
B48: 成長 | C48: 1318.3 | D48: 166.5 | E48: 11.3 | F48: 492.9 | G48: 6656.9 | H48: 47.3 | I48: 8693.2 | J48: 0.1 | L48: 1.4 | M48: 24.9 | N48: 26.4 | O48: 8719.6
A49: 15 以上 | B49: 面積 | C49: 374.14 | D49: 153.56 | E49: 29.86 | F49: 164.5 | G49: 1902.38 | H49: 2.21 | I49: 2626.65 | J49: 0.09 | L49: 1.1 | M49: 29.58 | N49: 30.77 | O49: 2657.42
B50: 蓄積 | C50: 185781 | D50: 71984 | E50: 13988 | F50: 41332 | G50: 681793 | H50: 825 | I50: 995703 | J50: 11 | L50: 145 | M50: 3363 | N50: 3519 | O50: 999222
B51: 成長 | C51: 502.7 | D51: 129.7 | E51: 31 | F51: 203.6 | G51: 2369 | H51: 8.8 | I51: 3244.8 | J51: 0.1 | L51: 0.7 | M51: 14.1 | N51: 14.9 | O51: 3259.7
A52: 計 | B52: 面積 | C52: =SUM(C7,C10,C13,C16,C19,C22,C25,C28,C31,C34,C37,C40,C43,C46,C49) -> 1949.4 | D52: 1876.31 | E52: 37.2 | F52: 5017.86 | G52: 12420.27 | H52: 118.26 | I52: 21419.3 | J52: =SUM(J7,J10,J13,J16,J19,J22,J25,J28,J31,J34,J37,J40,J43,J46,J49) -> 1.5 | K52: =SUM(K7,K10,K13,K16,K19,K22,K25,K28,K31,K34,K37,K40,K43,K46,K49) -> 3.12 | L52: =SUM(L7,L10,L13,L16,L19,L22,L25,L28,L31,L34,L37,L40,L43,L46,L49) -> 108.02 | M52: =SUM(M7,M10,M13,M16,M19,M22,M25,M28,M31,M34,M37,M40,M43,M46,M49) -> 322.53 | N52: =SUM(J52:M52) -> 435.17 | O52: 21854.47
B53: 蓄積 | C53: 871515 | D53: 514259 | E53: 16775 | F53: 1139085 | G53: 4101385 | H53: 28436 | I53: 6671455 | J53: =SUM(J8,J11,J14,J17,J20,J23,J26,J29,J32,J35,J38,J41,J44,J47,J50) -> 156 | K53: 1501 | L53: 6060 | M53: 19526 | N53: =SUM(J53:M53) -> 27243 | O53: 6698698
B54: 成長 | C54: 9026.4 | D54: 15271.6 | E54: 86.8 | F54: 11175.6 | G54: 33736.9 | H54: 772.6 | I54: 70069.9 | J54: 6.9 | K54: 94.2 | L54: 243.6 | M54: 574.3 | N54: =SUM(J54:M54) -> 919 | O54: 70988.9

Sheet 諏訪
A1: 第5表 地域振興局別・人工林天然林別・資源構成表
A3: 諏訪地域振興局(人工林) | O3: 単位 面積 : ha、蓄積 成長量 : ㎥
B4: 樹種 | C4: 針 葉 樹 | J4: 広 葉 樹 | O4: 計
C5: ス ギ | D5: ヒ ノ キ | E5: サ ワ ラ | F5: ア カ マ ツ | G5: カ ラ マ ツ | H5: そ の 他 針 | I5: 小 計 | J5: ク ヌ ギ | K5: ブ ナ | L5: ナ ラ | M5: そ の 他 広 | N5: 小 計
A6: 齢級
A7: 1 | B7: 面積 | D7: 3.15 | E7: 0.03 | F7: 13.48 | G7: 33.85 | I7: 50.51 | L7: 1.28 | M7: 1.52 | N7: 2.8 | O7: =SUM(N7,I7) -> 53.31
B8: 蓄積 | D8: 0 | E8: 0 | F8: 0 | G8: 0 | I8: 0 | L8: 0 | M8: 0 | N8: 0 | O8: =SUM(N8,I8) -> 0
B9: 成長 | D9: 0 | E9: 0 | F9: 0 | G9: 0 | I9: 0 | L9: 0 | M9: 0 | N9: 0 | O9: 0
A10: 2 | B10: 面積 | F10: 1.65 | G10: 13.07 | I10: 14.72 | L10: 3.56 | M10: 0.22 | N10: 3.78 | O10: 18.5
B11: 蓄積 | F11: 0 | G11: 0 | I11: 0 | L11: 22 | M11: 1 | N11: 23 | O11: 23
B12: 成長 | F12: 0 | G12: 0 | I12: 0 | L12: 2.8 | M12: 0.1 | N12: 2.9 | O12: 2.9
A13: 3 | B13: 面積 | C13: 0.14 | G13: 12.07 | I13: 12.21 | N13: 0 | O13: 12.21
B14: 蓄積 | C14: 12 | G14: 663 | I14: 675 | N14: 0 | O14: 675
B15: 成長 | C15: 2.4 | G15: 37.6 | I15: 40 | N15: 0 | O15: 40
A16: 4 | B16: 面積 | C16: 0.04 | D16: 0.87 | G16: 2.82 | I16: 3.73 | M16: 4.99 | N16: 4.99 | O16: 8.72
B17: 蓄積 | C17: 5 | D17: 607 | E17: 76 | G17: 253 | H17: 19 | I17: 960 | M17: 523 | N17: 523 | O17: 1483
B18: 成長 | C18: 0.4 | D18: 55.3 | E18: 7 | G18: 14.9 | H18: 1.5 | I18: 79.1 | M18: 35.4 | N18: 35.4 | O18: 114.5
A19: 5 | B19: 面積 | C19: 0.09 | D19: 2.94 | F19: 2.26 | G19: 0.1 | H19: 1.53 | I19: 6.92 | L19: 2.34 | M19: 1.14 | N19: 3.48 | O19: 10.4
B20: 蓄積 | C20: 52 | D20: 4508 | F20: 2479 | G20: 193 | H20: 1782 | I20: 9014 | L20: 673 | M20: 777 | N20: 1450 | O20: 10464
B21: 成長 | C21: 2.5 | D21: 263.1 | F21: 126.4 | G21: 8.8 | H21: 118.1 | I21: 518.9 | L21: 32.9 | M21: 39.5 | N21: 72.4 | O21: 591.3
A22: 6 | B22: 面積 | C22: 0.42 | D22: 12.3 | G22: 1.76 | H22: 1.27 | I22: 15.75 | L22: 1.55 | M22: 0.84 | N22: 2.39 | O22: 18.14
B23: 蓄積 | C23: 82 | D23: 7182 | F23: 120 | G23: 287 | H23: 2668 | I23: 10339 | L23: 1166 | M23: 1320 | N23: 2486 | O23: 12825
B24: 成長 | C24: 3 | D24: 309 | F24: 4.4 | G24: 6.6 | H24: 134.4 | I24: 457.4 | L24: 44.7 | M24: 53.5 | N24: 98.2 | O24: 555.6
A25: 7 | B25: 面積 | C25: 0.48 | D25: 62.77 | E25: 0.07 | F25: 2.11 | G25: 1.97 | H25: 5.94 | I25: 73.34 | L25: 0.6 | M25: 3.65 | N25: 4.25 | O25: 77.59
B26: 蓄積 | C26: 127 | D26: 21882 | E26: 94 | F26: 353 | G26: 303 | H26: 1992 | I26: 24751 | L26: 99 | M26: 801 | N26: 900 | O26: 25651
B27: 成長 | C27: 3.4 | D27: 706.7 | E27: 3.1 | F27: 8.6 | G27: 6.8 | H27: 93.4 | I27: 822 | L27: 3.2 | M27: 24.9 | N27: 28.1 | O27: 850.1
A28: 8 | B28: 面積 | C28: 2.38 | D28: 87.09 | E28: 0.17 | F28: 3.93 | G28: 22.79 | H28: 46.07 | I28: 162.43 | M28: 1.89 | N28: 1.89 | O28: 164.32
B29: 蓄積 | C29: 619 | D29: 33910 | E29: 31 | F29: 700 | G29: 4352 | H29: 4790 | I29: 44402 | M29: 220 | N29: 220 | O29: 44622
B30: 成長 | C30: 14.3 | D30: 886 | E30: 0.8 | F30: 13.9 | G30: 95.3 | H30: 179.4 | I30: 1189.7 | M30: 6.6 | N30: 6.6 | O30: 1196.3
A31: 9 | B31: 面積 | C31: 3.41 | D31: 204.23 | E31: 1.8 | F31: 27.41 | G31: 64.82 | H31: 85.81 | I31: 387.48 | M31: 1.51 | N31: 1.51 | O31: 388.99
B32: 蓄積 | C32: 968 | D32: 47273 | E32: 364 | F32: 5250 | G32: 13734 | H32: 8624 | I32: 76213 | M32: 156 | N32: 156 | O32: 76369
B33: 成長 | C33: 16.9 | D33: 1007 | E33: 7.6 | F33: 80.1 | G33: 250.9 | H33: 276.2 | I33: 1638.7 | M33: 4.2 | N33: 4.2 | O33: 1642.9
A34: 10 | B34: 面積 | C34: 7.62 | D34: 124.92 | E34: 2.35 | F34: 154.55 | G34: 248.43 | H34: 38.21 | I34: 576.08 | M34: 1.17 | N34: 1.17 | O34: 577.25
B35: 蓄積 | C35: 2269 | D35: 27007 | E35: 531 | F35: 29979 | G35: 58190 | H35: 4205 | I35: 122181 | M35: 96 | N35: 96 | O35: 122277
B36: 成長 | C36: 31.5 | D36: 497.5 | E36: 9.5 | F36: 403.2 | G36: 879.3 | H36: 122.1 | I36: 1943.1 | M36: 2.5 | N36: 2.5 | O36: 1945.6
A37: 11 | B37: 面積 | C37: 8.01 | D37: 79.45 | E37: 1.37 | F37: 321.18 | G37: 1159.93 | H37: 84.43 | I37: 1654.37 | M37: 3.68 | N37: 3.68 | O37: 1658.05
B38: 蓄積 | C38: 2586 | D38: 19273 | E38: 339 | F38: 67603 | G38: 286334 | H38: 12001 | I38: 388136 | M38: 236 | N38: 236 | O38: 388372
B39: 成長 | C39: 35.2 | D39: 312.5 | E39: 5.2 | F39: 754.8 | G39: 4007.3 | H39: 246.6 | I39: 5361.6 | M39: 4.1 | N39: 4.1 | O39: 5365.7
A40: 12 | B40: 面積 | C40: 18.14 | D40: 21.91 | E40: 3.3 | F40: 416.31 | G40: 2883.67 | H40: 45.82 | I40: 3389.15 | L40: 1.47 | M40: 4.24 | N40: 5.71 | O40: 3394.86
B41: 蓄積 | C41: 6217 | D41: 5696 | E41: 832 | F41: 94221 | G41: 746681 | H41: 7020 | I41: 860667 | L41: 122 | M41: 415 | N41: 537 | O41: 861204
B42: 成長 | C42: 80 | D42: 80.7 | E42: 11.8 | F42: 856.2 | G42: 9546 | H42: 136.1 | I42: 10710.8 | L42: 2.1 | M42: 8 | N42: 10.1 | O42: 10720.9
A43: 13 | B43: 面積 | C43: 32.52 | D43: 21.35 | E43: 20.04 | F43: 304.06 | G43: 4352.79 | H43: 124.98 | I43: 4855.74 | M43: 1.02 | N43: 1.02 | O43: 4856.76
B44: 蓄積 | C44: 11276 | D44: 5807 | E44: 5342 | F44: 68779 | G44: 1148900 | H44: 20931 | I44: 1261035 | M44: 102 | N44: 102 | O44: 1261137
B45: 成長 | C45: 137.6 | D45: 79 | E45: 68.1 | F45: 623.9 | G45: 14160.2 | H45: 380 | I45: 15448.8 | M45: 1.5 | N45: 1.5 | O45: 15450.3
A46: 14 | B46: 面積 | C46: 40.25 | D46: 68.36 | E46: 21.27 | F46: 152.43 | G46: 4857.21 | H46: 121.14 | I46: 5260.66 | M46: 4.98 | N46: 4.98 | O46: 5265.64
B47: 蓄積 | C47: 14382 | D47: 17995 | E47: 6018 | F47: 36366 | G47: 1375577 | H47: 19759 | I47: 1470097 | M47: 399 | N47: 399 | O47: 1470496
B48: 成長 | C48: 142.3 | D48: 211.3 | E48: 70.7 | F48: 292.7 | G48: 14349 | H48: 324.2 | I48: 15390.2 | M48: 4.5 | N48: 4.5 | O48: 15394.7
A49: 15 以上 | B49: 面積 | C49: 106.75 | D49: 287.99 | E49: 188.36 | F49: 122.46 | G49: 4506.62 | H49: 156.67 | I49: 5368.85 | L49: 0.17 | M49: 36.54 | N49: 36.71 | O49: 5405.56
B50: 蓄積 | C50: 42440 | D50: 87310 | E50: 55084 | F50: 29299 | G50: 1293998 | H50: 29898 | I50: 1538029 | L50: 9 | M50: 3483 | N50: 3492 | O50: 1541521
B51: 成長 | C51: 96.5 | D51: 236.7 | E51: 94 | F51: 139.1 | G51: 6307.9 | H51: 241.2 | I51: 7115.4 | L51: 0 | M51: 12.8 | N51: 12.8 | O51: 7128.2
A52: 計 | B52: 面積 | C52: =SUM(C7,C10,C13,C16,C19,C22,C25,C28,C31,C34,C37,C40,C43,C46,C49) -> 220.25 | D52: 977.33 | E52: 238.76 | F52: 1521.83 | G52: 18161.9 | H52: 711.87 | I52: 21831.94 | J52: =SUM(J7,J10,J13,J16,J19,J22,J25,J28,J31,J34,J37,J40,J43,J46,J49) -> 0 | K52: =SUM(K7,K10,K13,K16,K19,K22,K25,K28,K31,K34,K37,K40,K43,K46,K49) -> 0 | L52: =SUM(L7,L10,L13,L16,L19,L22,L25,L28,L31,L34,L37,L40,L43,L46,L49) -> 10.97 | M52: =SUM(M7,M10,M13,M16,M19,M22,M25,M28,M31,M34,M37,M40,M43,M46,M49) -> 67.39 | N52: =SUM(J52:M52) -> 78.36 | O52: 21910.3
B53: 蓄積 | C53: 81035 | D53: 278450 | E53: 68711 | F53: 335149 | G53: 4929465 | H53: 113689 | I53: 5806499 | J53: =SUM(J8,J11,J14,J17,J20,J23,J26,J29,J32,J35,J38,J41,J44,J47,J50) -> 0 | K53: 0 | L53: 2091 | M53: 8529 | N53: =SUM(J53:M53) -> 10620 | O53: 5817119
B54: 成長 | C54: 566 | D54: 4644.8 | E54: 277.8 | F54: 3303.3 | G54: 49670.6 | H54: 2253.2 | I54: 60715.7 | J54: 0 | K54: 0 | L54: 85.7 | M54: 197.6 | N54: =SUM(J54:M54) -> 283.3 | O54: 60999

Sheet 上伊那
A1: 第5表 地域振興局別・人工林天然林別・資源構成表
A3: 上伊那地域振興局(人工林) | O3: 単位 面積 : ha、蓄積 成長量 : ㎥
B4: 樹種 | C4: 針 葉 樹 | J4: 広 葉 樹 | O4: 計
C5: ス ギ | D5: ヒ ノ キ | E5: サ ワ ラ | F5: ア カ マ ツ | G5: カ ラ マ ツ | H5: そ の 他 針 | I5: 小 計 | J5: ク ヌ ギ | K5: ブ ナ | L5: ナ ラ | M5: そ の 他 広 | N5: 小 計
A6: 齢級
A7: 1 | B7: 面積 | C7: 1.34 | D7: 29.5 | E7: 0.37 | G7: 37.31 | I7: 68.52 | L7: 17.25 | M7: 6.07 | N7: 23.32 | O7: =SUM(N7,I7) -> 91.84
B8: 蓄積 | C8: 0 | D8: 0 | E8: 0 | G8: 0 | I8: 0 | L8: 0 | M8: 0 | N8: 0 | O8: =SUM(N8,I8) -> 0
B9: 成長 | C9: 0 | D9: 0 | E9: 0 | G9: 0 | I9: 0 | L9: 0 | M9: 0 | N9: 0 | O9: 0
A10: 2 | B10: 面積 | C10: 0.31 | D10: 10.94 | F10: 0.19 | G10: 3 | H10: 0.11 | I10: 14.55 | L10: 4.13 | M10: 9.51 | N10: 13.64 | O10: 28.19
B11: 蓄積 | C11: 0 | D11: 0 | F11: 0 | G11: 0 | H11: 0 | I11: 0 | J11: 7 | L11: 40 | M11: 123 | N11: 170 | O11: 170
B12: 成長 | C12: 0 | D12: 0 | F12: 0 | G12: 0 | H12: 0 | I12: 0 | J12: 1.7 | L12: 5.2 | M12: 17 | N12: 23.9 | O12: 23.9
A13: 3 | B13: 面積 | D13: 22.74 | E13: 0.11 | G13: 15.94 | I13: 38.79 | L13: 5.11 | M13: 4.08 | N13: 9.19 | O13: 47.98
B14: 蓄積 | D14: 1517 | E14: 6 | G14: 1164 | I14: 2687 | L14: 134 | M14: 98 | N14: 232 | O14: 2919
B15: 成長 | D15: 291.8 | E15: 1.2 | G15: 107.1 | I15: 400.1 | L15: 11.9 | M15: 8.2 | N15: 20.1 | O15: 420.2
A16: 4 | B16: 面積 | D16: 131.46 | F16: 0.14 | G16: 9.85 | H16: 0.63 | I16: 142.08 | K16: 0.61 | L16: 13.43 | M16: 8.25 | N16: 22.29 | O16: 164.37
B17: 蓄積 | D17: 11285 | F17: 2 | G17: 915 | H17: 19 | I17: 12221 | K17: 10 | L17: 394 | M17: 339 | N17: 743 | O17: 12964
B18: 成長 | D18: 1030.8 | F18: 0.2 | G18: 53.8 | H18: 1.5 | I18: 1086.3 | K18: 0.9 | L18: 25.7 | M18: 22.9 | N18: 49.5 | O18: 1135.8
A19: 5 | B19: 面積 | C19: 0.18 | D19: 110.63 | F19: 1.64 | G19: 72.48 | I19: 184.93 | J19: 0.42 | L19: 0.42 | M19: 4.08 | N19: 4.92 | O19: 189.85
B20: 蓄積 | C20: 30 | D20: 15048 | F20: 170 | G20: 9137 | H20: 744 | I20: 25129 | J20: 26 | L20: 17 | M20: 207 | N20: 250 | O20: 25379
B21: 成長 | C21: 1.5 | D21: 876.6 | F21: 8.7 | G21: 426.8 | H21: 50.7 | I21: 1364.3 | J21: 0.8 | L21: 0.8 | M21: 10.6 | N21: 12.2 | O21: 1376.5
A22: 6 | B22: 面積 | C22: 0.59 | D22: 196.76 | F22: 0.57 | G22: 93.26 | H22: 1.72 | I22: 292.9 | M22: 2.13 | N22: 2.13 | O22: 295.03
B23: 蓄積 | C23: 119 | D23: 35179 | F23: 48 | G23: 13281 | H23: 104 | I23: 48731 | M23: 208 | N23: 208 | O23: 48939
B24: 成長 | C24: 4.2 | D24: 1516.4 | F24: 1.8 | G24: 308 | H24: 5.2 | I24: 1835.6 | M24: 8.4 | N24: 8.4 | O24: 1844
A25: 7 | B25: 面積 | C25: 1.67 | D25: 312.85 | F25: 21.86 | G25: 130.63 | H25: 15.88 | I25: 482.89 | K25: 1.56 | L25: 0.08 | M25: 6.59 | N25: 8.23 | O25: 491.12
B26: 蓄積 | C26: 383 | D26: 66549 | F26: 4109 | G26: 24030 | H26: 1748 | I26: 96819 | K26: 34 | L26: 5 | M26: 459 | N26: 498 | O26: 97317
B27: 成長 | C27: 9.9 | D27: 2154.3 | F27: 98 | G27: 531.6 | H27: 81.8 | I27: 2875.6 | K27: 1.9 | L27: 0.2 | M27: 14.1 | N27: 16.2 | O27: 2891.8
A28: 8 | B28: 面積 | C28: 12.71 | D28: 388.43 | F28: 54.7 | G28: 258.87 | H28: 24.2 | I28: 738.91 | J28: 0.42 | M28: 12.22 | N28: 12.64 | O28: 751.55
B29: 蓄積 | C29: 3604 | D29: 79271 | F29: 10591 | G29: 47715 | H29: 2752 | I29: 143933 | J29: 36 | M29: 808 | N29: 844 | O29: 144777
B30: 成長 | C30: 83.6 | D30: 2068 | F30: 224.7 | G30: 1024.4 | H30: 101.7 | I30: 3502.4 | J30: 0.1 | M30: 24.6 | N30: 24.7 | O30: 3527.1
A31: 9 | B31: 面積 | C31: 19.22 | D31: 615.02 | F31: 147.29 | G31: 509 | H31: 90.54 | I31: 1381.07 | M31: 13.17 | N31: 13.17 | O31: 1394.24
B32: 蓄積 | C32: 5303 | D32: 128335 | F32: 27588 | G32: 97026 | H32: 10173 | I32: 268425 | M32: 1068 | N32: 1068 | O32: 269493
B33: 成長 | C33: 90.9 | D33: 2712.3 | F33: 422 | G33: 1799 | H33: 310.6 | I33: 5334.8 | M33: 29.6 | N33: 29.6 | O33: 5364.4
A34: 10 | B34: 面積 | C34: 38.66 | D34: 906.12 | E34: 3.18 | F34: 608.58 | G34: 1132.57 | H34: 84.65 | I34: 2773.76 | M34: 8.99 | N34: 8.99 | O34: 2782.75
B35: 蓄積 | C35: 11662 | D35: 206363 | E35: 723 | F35: 125881 | G35: 265743 | H35: 10456 | I35: 620828 | M35: 793 | N35: 793 | O35: 621621
B36: 成長 | C36: 163.4 | D36: 3743.1 | E36: 13 | F36: 1650.3 | G36: 4009.4 | H36: 310.1 | I36: 9889.3 | M36: 20.1 | N36: 20.1 | O36: 9909.4
A37: 11 | B37: 面積 | C37: 80.05 | D37: 661.91 | E37: 11.3 | F37: 1760.03 | G37: 2210.03 | H37: 32.16 | I37: 4755.48 | M37: 50.9 | N37: 50.9 | O37: 4806.38
B38: 蓄積 | C38: 25920 | D38: 164639 | E38: 2034 | F38: 387367 | G38: 541812 | H38: 4273 | I38: 1126045 | M38: 4743 | N38: 4743 | O38: 1130788
B39: 成長 | C39: 359 | D39: 2643.7 | E39: 32.5 | F39: 4277.1 | G39: 7583.1 | H39: 93.3 | I39: 14988.7 | M39: 93 | N39: 93 | O39: 15081.7
A40: 12 | B40: 面積 | C40: 194.26 | D40: 266.92 | E40: 0.78 | F40: 2738.64 | G40: 4882.79 | H40: 15.34 | I40: 8098.73 | M40: 15.58 | N40: 15.58 | O40: 8114.31
B41: 蓄積 | C41: 66619 | D41: 73081 | E41: 185 | F41: 625251 | G41: 1238895 | H41: 2164 | I41: 2006195 | M41: 1674 | N41: 1674 | O41: 2007869
B42: 成長 | C42: 861.9 | D42: 1030.2 | E42: 2.5 | F42: 5692.2 | G42: 15754.7 | H42: 42.5 | I42: 23384 | M42: 32.9 | N42: 32.9 | O42: 23416.9
A43: 13 | B43: 面積 | C43: 316.71 | D43: 285.97 | E43: 9.38 | F43: 2207.53 | G43: 6354.27 | H43: 34.72 | I43: 9208.58 | M43: 4.22 | N43: 4.22 | O43: 9212.8
B44: 蓄積 | C44: 112461 | D44: 76637 | E44: 2518 | F44: 516171 | G44: 1693941 | H44: 4737 | I44: 2406465 | M44: 482 | N44: 482 | O44: 2406947
B45: 成長 | C45: 1352.9 | D45: 1053.5 | E45: 33.6 | F45: 4573.6 | G45: 20702.7 | H45: 91 | I45: 27807.3 | M45: 7.7 | N45: 7.7 | O45: 27815
A46: 14 | B46: 面積 | C46: 388.01 | D46: 284.5 | E46: 3.57 | F46: 1348.94 | G46: 5717.93 | H46: 13.09 | I46: 7756.04 | M46: 21.13 | N46: 21.13 | O46: 7777.17
B47: 蓄積 | C47: 141616 | D47: 78333 | E47: 1034 | F47: 327816 | G47: 1668608 | H47: 2335 | I47: 2219742 | M47: 1724 | N47: 1724 | O47: 2221466
B48: 成長 | C48: 1405.7 | D48: 932.9 | E48: 12.1 | F48: 2618.5 | G48: 17384.9 | H48: 37.7 | I48: 22391.8 | M48: 20.2 | N48: 20.2 | O48: 22412
A49: 15 以上 | B49: 面積 | C49: 423.86 | D49: 1224.61 | E49: 53.78 | F49: 445.26 | G49: 4512.51 | H49: 43.02 | I49: 6703.04 | J49: 0.1 | M49: 40.63 | N49: 40.73 | O49: 6743.77
B50: 蓄積 | C50: 167102 | D50: 378068 | E50: 16481 | F50: 110762 | G50: 1346265 | H50: 8655 | I50: 2027333 | J50: 5 | M50: 4742 | N50: 4747 | O50: 2032080
B51: 成長 | C51: 630.2 | D51: 999.7 | E51: 22.7 | F51: 665.6 | G51: 9040 | H51: 95 | I51: 11453.2 | J51: 0 | M51: 14.3 | N51: 14.3 | O51: 11467.5
A52: 計 | B52: 面積 | C52: =SUM(C7,C10,C13,C16,C19,C22,C25,C28,C31,C34,C37,C40,C43,C46,C49) -> 1477.57 | D52: 5448.36 | E52: 82.47 | F52: 9335.37 | G52: 25940.44 | H52: 356.06 | I52: 42640.27 | J52: =SUM(J7,J10,J13,J16,J19,J22,J25,J28,J31,J34,J37,J40,J43,J46,J49) -> 0.94 | K52: =SUM(K7,K10,K13,K16,K19,K22,K25,K28,K31,K34,K37,K40,K43,K46,K49) -> 2.17 | L52: =SUM(L7,L10,L13,L16,L19,L22,L25,L28,L31,L34,L37,L40,L43,L46,L49) -> 40.42 | M52: =SUM(M7,M10,M13,M16,M19,M22,M25,M28,M31,M34,M37,M40,M43,M46,M49) -> 207.55 | N52: =SUM(J52:M52) -> 251.08 | O52: 42891.35
B53: 蓄積 | C53: 534819 | D53: 1314305 | E53: 22981 | F53: 2135756 | G53: 6948532 | H53: 48160 | I53: 11004553 | J53: =SUM(J8,J11,J14,J17,J20,J23,J26,J29,J32,J35,J38,J41,J44,J47,J50) -> 74 | K53: 44 | L53: 590 | M53: 17468 | N53: =SUM(J53:M53) -> 18176 | O53: 11022729
B54: 成長 | C54: 4963.2 | D54: 21053.3 | E54: 117.6 | F54: 20232.7 | G54: 78725.5 | H54: 1221.1 | I54: 126313.4 | J54: 2.6 | K54: 2.8 | L54: 43.8 | M54: 323.6 | N54: =SUM(J54:M54) -> 372.8 | O54: 126686.2

Sheet 南信州
A1: 第5表 地域振興局別・人工林天然林別・資源構成表
A3: 南信州地域振興局(人工林) | O3: 単位 面積 : ha、蓄積 成長量 : ㎥
B4: 樹種 | C4: 針 葉 樹 | J4: 広 葉 樹 | O4: 計
C5: ス ギ | D5: ヒ ノ キ | E5: サ ワ ラ | F5: ア カ マ ツ | G5: カ ラ マ ツ | H5: そ の 他 針 | I5: 小 計 | J5: ク ヌ ギ | K5: ブ ナ | L5: ナ ラ | M5: そ の 他 広 | N5: 小 計
A6: 齢級
A7: 1 | B7: 面積 | C7: 6.1 | D7: 17.51 | F7: 0.51 | G7: 17.42 | I7: 41.54 | L7: 2.94 | M7: 4.78 | N7: 7.72 | O7: =SUM(N7,I7) -> 49.26
B8: 蓄積 | C8: 0 | D8: 0 | F8: 0 | G8: 0 | I8: 0 | L8: 0 | M8: 0 | N8: 0 | O8: =SUM(N8,I8) -> 0
B9: 成長 | C9: 0 | D9: 0 | F9: 0 | G9: 0 | I9: 0 | L9: 0 | M9: 0 | N9: 0 | O9: 0
A10: 2 | B10: 面積 | C10: 0.12 | D10: 27.23 | H10: 0.22 | I10: 27.57 | L10: 7.74 | M10: 14.83 | N10: 22.57 | O10: 50.14
B11: 蓄積 | C11: 0 | D11: 0 | H11: 0 | I11: 0 | L11: 95 | M11: 159 | N11: 254 | O11: 254
B12: 成長 | C12: 0 | D12: 0 | H12: 0 | I12: 0 | L12: 13.6 | M12: 22.9 | N12: 36.5 | O12: 36.5
A13: 3 | B13: 面積 | C13: 5.28 | D13: 103.25 | F13: 0.56 | H13: 0.2 | I13: 109.29 | L13: 4.19 | M13: 10.44 | N13: 14.63 | O13: 123.92
B14: 蓄積 | C14: 433 | D14: 5197 | F14: 37 | G14: 483 | H14: 5 | I14: 6155 | L14: 94 | M14: 243 | N14: 337 | O14: 6492
B15: 成長 | C15: 87.6 | D15: 1122.3 | F15: 5 | G15: 52.2 | H15: 0.6 | I15: 1267.7 | L15: 8.2 | M15: 21.8 | N15: 30 | O15: 1297.7
A16: 4 | B16: 面積 | C16: 10.41 | D16: 328.89 | E16: 9.32 | F16: 3.39 | G16: 2.49 | H16: 0.43 | I16: 354.93 | L16: 13.08 | M16: 14.33 | N16: 27.41 | O16: 382.34
B17: 蓄積 | C17: 1769 | D17: 26318 | E17: 633 | F17: 255 | G17: 138 | H17: 14 | I17: 29127 | L17: 424 | M17: 670 | N17: 1094 | O17: 30221
B18: 成長 | C18: 142.6 | D18: 2416.2 | E18: 60 | F18: 21 | G18: 10.3 | H18: 1.1 | I18: 2651.2 | L18: 28 | M18: 43.8 | N18: 71.8 | O18: 2723
A19: 5 | B19: 面積 | C19: 7.84 | D19: 416.33 | E19: 0.12 | F19: 9.49 | G19: 0.85 | H19: 0.27 | I19: 434.9 | K19: 0.56 | L19: 7.15 | M19: 36.65 | N19: 44.36 | O19: 479.26
B20: 蓄積 | C20: 2017 | D20: 61204 | E20: 13 | F20: 698 | G20: 114 | H20: 12 | I20: 64058 | K20: 13 | L20: 537 | M20: 2135 | N20: 2685 | O20: 66743
B21: 成長 | C21: 100.7 | D21: 3739.8 | E21: 0.8 | F21: 36.5 | G21: 6.1 | H21: 0.8 | I21: 3884.7 | K21: 1 | L21: 26 | M21: 103.7 | N21: 130.7 | O21: 4015.4
A22: 6 | B22: 面積 | C22: 17.67 | D22: 951.27 | E22: 0.51 | F22: 3.67 | G22: 4.69 | H22: 3.71 | I22: 981.52 | L22: 1.34 | M22: 11.38 | N22: 12.72 | O22: 994.24
B23: 蓄積 | C23: 8745 | D23: 157006 | E23: 56 | F23: 563 | G23: 674 | H23: 167 | I23: 167211 | L23: 369 | M23: 648 | N23: 1017 | O23: 168228
B24: 成長 | C24: 321.5 | D24: 6642.5 | E24: 2.6 | F24: 20.9 | G24: 24.3 | H24: 9 | I24: 7020.8 | L24: 13.8 | M24: 24.9 | N24: 38.7 | O24: 7059.5
A25: 7 | B25: 面積 | C25: 21.97 | D25: 1654.78 | E25: 0.07 | F25: 3.59 | G25: 43.67 | H25: 6.59 | I25: 1730.67 | L25: 27.54 | M25: 7.39 | N25: 34.93 | O25: 1765.6
B26: 蓄積 | C26: 5296 | D26: 281777 | E26: 12 | F26: 535 | G26: 6162 | H26: 1525 | I26: 295307 | L26: 2097 | M26: 1321 | N26: 3418 | O26: 298725
B27: 成長 | C27: 138.5 | D27: 9641.2 | E27: 0.4 | F27: 13 | G27: 180.6 | H27: 67.1 | I27: 10040.8 | L27: 67.4 | M27: 42.8 | N27: 110.2 | O27: 10151
A28: 8 | B28: 面積 | C28: 39.51 | D28: 2405.55 | E28: 1.96 | F28: 23.03 | G28: 184.87 | H28: 48.4 | I28: 2703.32 | L28: 13.26 | M28: 7.87 | N28: 21.13 | O28: 2724.45
B29: 蓄積 | C29: 10965 | D29: 447808 | E29: 307 | F29: 4224 | G29: 40643 | H29: 8870 | I29: 512817 | L29: 935 | M29: 379 | N29: 1314 | O29: 514131
B30: 成長 | C30: 253.2 | D30: 11796.3 | E30: 9.2 | F30: 84.5 | G30: 970.2 | H30: 328.3 | I30: 13441.7 | L30: 26.9 | M30: 10.7 | N30: 37.6 | O30: 13479.3
A31: 9 | B31: 面積 | C31: 155.55 | D31: 3416.22 | E31: 0.17 | F31: 59.36 | G31: 293.99 | H31: 72.22 | I31: 3997.51 | L31: 5.24 | M31: 12.06 | N31: 17.3 | O31: 4014.81
B32: 蓄積 | C32: 48208 | D32: 709655 | E32: 34 | F32: 11195 | G32: 60127 | H32: 6923 | I32: 836142 | L32: 422 | M32: 787 | N32: 1209 | O32: 837351
B33: 成長 | C33: 818 | D33: 15611.1 | E33: 0.8 | F33: 171.9 | G33: 1189.4 | H33: 223.5 | I33: 18014.7 | L33: 11.4 | M33: 21 | N33: 32.4 | O33: 18047.1
A34: 10 | B34: 面積 | C34: 399.37 | D34: 4126.98 | E34: 1.83 | F34: 396.5 | G34: 937.06 | H34: 131.69 | I34: 5993.43 | M34: 14.13 | N34: 14.13 | O34: 6007.56
B35: 蓄積 | C35: 132199 | D35: 926358 | E35: 409 | F35: 81016 | G35: 216392 | H35: 15095 | I35: 1371469 | M35: 1061 | N35: 1061 | O35: 1372530
B36: 成長 | C36: 1929.5 | D36: 16736.9 | E36: 7.3 | F36: 991.2 | G36: 3236.1 | H36: 414.2 | I36: 23315.2 | M36: 24.5 | N36: 24.5 | O36: 23339.7
A37: 11 | B37: 面積 | C37: 942.1 | D37: 3666.68 | E37: 6.8 | F37: 2054.31 | G37: 1711.23 | H37: 109.32 | I37: 8490.44 | M37: 64.4 | N37: 64.4 | O37: 8554.84
B38: 蓄積 | C38: 321866 | D38: 887940 | E38: 1629 | F38: 434707 | G38: 424164 | H38: 14934 | I38: 2085240 | M38: 3229 | N38: 3229 | O38: 2088469
B39: 成長 | C39: 4276.4 | D39: 14336.2 | E39: 26.6 | F39: 4897.2 | G39: 5920.7 | H39: 354.7 | I39: 29811.8 | M39: 61 | N39: 61 | O39: 29872.8
A40: 12 | B40: 面積 | C40: 2107.47 | D40: 2054.34 | E40: 1.47 | F40: 3741.76 | G40: 3305.96 | H40: 13.04 | I40: 11224.04 | L40: 0.04 | M40: 42.65 | N40: 42.69 | O40: 11266.73
B41: 蓄積 | C41: 769368 | D41: 534663 | E41: 394 | F41: 841111 | G41: 873382 | H41: 1838 | I41: 3020756 | L41: 5 | M41: 3835 | N41: 3840 | O41: 3024596
B42: 成長 | C42: 9560.5 | D42: 7025.2 | E42: 5.1 | F42: 9301.3 | G42: 11203.5 | H42: 34.9 | I42: 37130.5 | L42: 0.1 | M42: 71.1 | N42: 71.2 | O42: 37201.7
A43: 13 | B43: 面積 | C43: 2583.75 | D43: 1720.65 | E43: 2.88 | F43: 1917.41 | G43: 3618.75 | H43: 22.51 | I43: 9865.95 | L43: 0.57 | M43: 51.68 | N43: 52.25 | O43: 9918.2
B44: 蓄積 | C44: 973106 | D44: 460475 | E44: 783 | F44: 440906 | G44: 953803 | H44: 3394 | I44: 2832467 | L44: 66 | M44: 3659 | N44: 3725 | O44: 2836192
B45: 成長 | C45: 11710.9 | D45: 5993.2 | E45: 10.2 | F45: 4796.4 | G45: 11821.2 | H45: 64.7 | I45: 34396.6 | L45: 1.1 | M45: 61.4 | N45: 62.5 | O45: 34459.1
A46: 14 | B46: 面積 | C46: 1940.66 | D46: 1150.07 | E46: 2.05 | F46: 604.14 | G46: 3887.36 | H46: 12 | I46: 7596.28 | L46: 0.43 | M46: 39.41 | N46: 39.84 | O46: 7636.12
B47: 蓄積 | C47: 775840 | D47: 321782 | E47: 518 | F47: 143185 | G47: 1074712 | H47: 2076 | I47: 2318113 | L47: 52 | M47: 3166 | N47: 3218 | O47: 2321331
B48: 成長 | C48: 7663.2 | D48: 3858.3 | E48: 6 | F48: 1147.7 | G48: 11598.1 | H48: 34.1 | I48: 24307.4 | L48: 0.6 | M48: 39.3 | N48: 39.9 | O48: 24347.3
A49: 15 以上 | B49: 面積 | C49: 3081.9 | D49: 4089.58 | E49: 21.77 | F49: 450.21 | G49: 2978.68 | H49: 53.31 | I49: 10675.45 | L49: 2.75 | M49: 295.64 | N49: 298.39 | O49: 10973.84
B50: 蓄積 | C50: 1325387 | D50: 1245926 | E50: 6366 | F50: 109464 | G50: 892765 | H50: 10856 | I50: 3590764 | L50: 309 | M50: 25123 | N50: 25432 | O50: 3616196
B51: 成長 | C51: 4076 | D51: 4356.2 | E51: 7.4 | F51: 599 | G51: 6451.1 | H51: 58.1 | I51: 15547.8 | L51: 3.6 | M51: 133.8 | N51: 137.4 | O51: 15685.2
A52: 計 | B52: 面積 | C52: =SUM(C7,C10,C13,C16,C19,C22,C25,C28,C31,C34,C37,C40,C43,C46,C49) -> 11319.7 | D52: 26129.33 | E52: 48.95 | F52: 9267.93 | G52: 16987.02 | H52: 473.91 | I52: 64226.84 | J52: =SUM(J7,J10,J13,J16,J19,J22,J25,J28,J31,J34,J37,J40,J43,J46,J49) -> 0 | K52: =SUM(K7,K10,K13,K16,K19,K22,K25,K28,K31,K34,K37,K40,K43,K46,K49) -> 0.56 | L52: =SUM(L7,L10,L13,L16,L19,L22,L25,L28,L31,L34,L37,L40,L43,L46,L49) -> 86.27 | M52: =SUM(M7,M10,M13,M16,M19,M22,M25,M28,M31,M34,M37,M40,M43,M46,M49) -> 627.64 | N52: =SUM(J52:M52) -> 714.47 | O52: 64941.31
B53: 蓄積 | C53: 4375199 | D53: 6066109 | E53: 11154 | F53: 2067896 | G53: 4543559 | H53: 65709 | I53: 17129626 | J53: =SUM(J8,J11,J14,J17,J20,J23,J26,J29,J32,J35,J38,J41,J44,J47,J50) -> 0 | K53: 13 | L53: 5405 | M53: 46415 | N53: =SUM(J53:M53) -> 51833 | O53: 17181459
B54: 成長 | C54: 41078.6 | D54: 103275.4 | E54: 136.4 | F54: 22085.6 | G54: 52663.8 | H54: 1591.1 | I54: 220830.9 | J54: 0 | K54: 1 | L54: 200.7 | M54: 682.7 | N54: =SUM(J54:M54) -> 884.4 | O54: 221715.3

Sheet 木曽
A1: 第5表 地域振興局別・人工林天然林別・資源構成表
A3: 木曽地域振興局(人工林) | O3: 単位 面積 : ha、蓄積 成長量 : ㎥
B4: 樹種 | C4: 針 葉 樹 | J4: 広 葉 樹 | O4: 計
C5: ス ギ | D5: ヒ ノ キ | E5: サ ワ ラ | F5: ア カ マ ツ | G5: カ ラ マ ツ | H5: そ の 他 針 | I5: 小 計 | J5: ク ヌ ギ | K5: ブ ナ | L5: ナ ラ | M5: そ の 他 広 | N5: 小 計
A6: 齢級
A7: 1 | B7: 面積 | C7: 0.2 | D7: 7.11 | G7: 8.25 | I7: 15.56 | L7: 0.39 | M7: 2.81 | N7: 3.2 | O7: =SUM(N7,I7) -> 18.76
B8: 蓄積 | C8: 0 | D8: 0 | G8: 0 | I8: 0 | L8: 0 | M8: 0 | N8: 0 | O8: =SUM(N8,I8) -> 0
B9: 成長 | C9: 0 | D9: 0 | G9: 0 | I9: 0 | L9: 0 | M9: 0 | N9: 0 | O9: 0
A10: 2 | B10: 面積 | D10: 5.07 | I10: 5.07 | M10: 2.78 | N10: 2.78 | O10: 7.85
B11: 蓄積 | D11: 0 | I11: 0 | M11: 30 | N11: 30 | O11: 30
B12: 成長 | D12: 0 | I12: 0 | M12: 4.1 | N12: 4.1 | O12: 4.1
A13: 3 | B13: 面積 | D13: 14.34 | E13: 2.13 | F13: 0.13 | G13: 0.1 | H13: 0.24 | I13: 16.94 | L13: 0.19 | M13: 4.57 | N13: 4.76 | O13: 21.7
B14: 蓄積 | D14: 725 | E14: 102 | F14: 9 | G14: 8 | H14: 6 | I14: 850 | L14: 3 | M14: 128 | N14: 131 | O14: 981
B15: 成長 | D15: 139.5 | E15: 19.6 | F15: 1.2 | G15: 0.8 | H15: 0.8 | I15: 161.9 | L15: 0.3 | M15: 11 | N15: 11.3 | O15: 173.2
A16: 4 | B16: 面積 | C16: 0.36 | D16: 53.48 | E16: 0.24 | G16: 1.06 | H16: 0.13 | I16: 55.27 | M16: 6.98 | N16: 6.98 | O16: 62.25
B17: 蓄積 | C17: 43 | D17: 4053 | E17: 11 | G17: 106 | H17: 5 | I17: 4218 | M17: 215 | N17: 215 | O17: 4433
B18: 成長 | C18: 3.5 | D18: 371.3 | E18: 1.1 | G18: 6.3 | H18: 0.4 | I18: 382.6 | M18: 14.5 | N18: 14.5 | O18: 397.1
A19: 5 | B19: 面積 | C19: 0.04 | D19: 196.71 | E19: 0.74 | F19: 0.33 | G19: 1.82 | H19: 0.12 | I19: 199.76 | L19: 0.25 | M19: 5.64 | N19: 5.89 | O19: 205.65
B20: 蓄積 | C20: 7 | D20: 23335 | E20: 74 | F20: 475 | G20: 210 | H20: 6 | I20: 24107 | L20: 11 | M20: 216 | N20: 227 | O20: 24334
B21: 成長 | C21: 0.3 | D21: 1360 | E21: 4.4 | F21: 23.8 | G21: 9.6 | H21: 0.4 | I21: 1398.5 | L21: 0.5 | M21: 11.1 | N21: 11.6 | O21: 1410.1
A22: 6 | B22: 面積 | C22: 0.11 | D22: 260.36 | E22: 0.03 | F22: 0.52 | G22: 7.62 | H22: 0.41 | I22: 269.05 | L22: 0.33 | M22: 4.78 | N22: 5.11 | O22: 274.16
B23: 蓄積 | C23: 22 | D23: 34631 | E23: 4 | F23: 71 | G23: 1093 | H23: 157 | I23: 35978 | L23: 16 | M23: 184 | N23: 200 | O23: 36178
B24: 成長 | C24: 0.8 | D24: 1489.3 | E24: 0.2 | F24: 2.7 | G24: 25.3 | H24: 8.1 | I24: 1526.4 | L24: 0.7 | M24: 7.4 | N24: 8.1 | O24: 1534.5
A25: 7 | B25: 面積 | C25: 0.49 | D25: 468.87 | E25: 1.77 | F25: 1.46 | G25: 21.29 | H25: 7.38 | I25: 501.26 | M25: 4.17 | N25: 4.17 | O25: 505.43
B26: 蓄積 | C26: 114 | D26: 76121 | E26: 286 | F26: 236 | G26: 3778 | H26: 702 | I26: 81237 | M26: 218 | N26: 218 | O26: 81455
B27: 成長 | C27: 3 | D27: 2459.3 | E27: 9.1 | F27: 5.8 | G27: 83.5 | H27: 32.2 | I27: 2592.9 | M27: 6.8 | N27: 6.8 | O27: 2599.7
A28: 8 | B28: 面積 | C28: 4.93 | D28: 1165.75 | E28: 0.39 | F28: 2.62 | G28: 7.91 | H28: 11.72 | I28: 1193.32 | M28: 7.09 | N28: 7.09 | O28: 1200.41
B29: 蓄積 | C29: 1232 | D29: 210911 | E29: 75 | F29: 474 | G29: 1551 | H29: 1174 | I29: 215417 | M29: 517 | N29: 517 | O29: 215934
B30: 成長 | C30: 28.3 | D30: 5517.2 | E30: 1.9 | F30: 9.7 | G30: 32.5 | H30: 43.9 | I30: 5633.5 | M30: 15.5 | N30: 15.5 | O30: 5649
A31: 9 | B31: 面積 | C31: 13.39 | D31: 1312.32 | E31: 0.52 | F31: 13.21 | G31: 93.47 | H31: 9.54 | I31: 1442.45 | M31: 10.35 | N31: 10.35 | O31: 1452.8
B32: 蓄積 | C32: 3738 | D32: 263485 | E32: 104 | F32: 2580 | G32: 21027 | H32: 1119 | I32: 292053 | M32: 847 | N32: 847 | O32: 292900
B33: 成長 | C33: 64 | D33: 5612.7 | E33: 2.2 | F33: 38.6 | G33: 378.9 | H33: 34.1 | I33: 6130.5 | M33: 23.5 | N33: 23.5 | O33: 6154
A34: 10 | B34: 面積 | C34: 36.9 | D34: 1470.5 | E34: 5.3 | F34: 164.62 | G34: 136.88 | H34: 35.32 | I34: 1849.52 | M34: 1.64 | N34: 1.64 | O34: 1851.16
B35: 蓄積 | C35: 10861 | D35: 327626 | E35: 1173 | F35: 34107 | G35: 33571 | H35: 4574 | I35: 411912 | M35: 132 | N35: 132 | O35: 412044
B36: 成長 | C36: 154.2 | D36: 5968.3 | E36: 21.4 | F36: 444 | G36: 505.4 | H36: 136.1 | I36: 7229.4 | M36: 3.4 | N36: 3.4 | O36: 7232.8
A37: 11 | B37: 面積 | C37: 130.36 | D37: 1421.68 | E37: 10.47 | F37: 738.48 | G37: 901.32 | H37: 7.27 | I37: 3209.58 | M37: 1.03 | N37: 1.03 | O37: 3210.61
B38: 蓄積 | C38: 41095 | D38: 340444 | E38: 2560 | F38: 159508 | G38: 232315 | H38: 1068 | I38: 776990 | M38: 103 | N38: 103 | O38: 777093
B39: 成長 | C39: 561.2 | D39: 5488.9 | E39: 41.3 | F39: 1773.2 | G39: 3252.8 | H39: 21.9 | I39: 11139.3 | M39: 2 | N39: 2 | O39: 11141.3
A40: 12 | B40: 面積 | C40: 312.42 | D40: 974.1 | E40: 23.53 | F40: 678.84 | G40: 2711.78 | H40: 5.24 | I40: 4705.91 | L40: 1.56 | M40: 8.51 | N40: 10.07 | O40: 4715.98
B41: 蓄積 | C41: 104517 | D41: 253751 | E41: 6199 | F41: 153964 | G41: 744741 | H41: 826 | I41: 1263998 | L41: 167 | M41: 969 | N41: 1136 | O41: 1265134
B42: 成長 | C42: 1327 | D42: 3587.7 | E42: 87.5 | F42: 1409.5 | G42: 9600.7 | H42: 15.9 | I42: 16028.3 | L42: 3.4 | M42: 16.8 | N42: 20.2 | O42: 16048.5
A43: 13 | B43: 面積 | C43: 507.2 | D43: 755.97 | E43: 35.11 | F43: 295.36 | G43: 3755.14 | H43: 12.29 | I43: 5361.07 | L43: 0.35 | M43: 4.77 | N43: 5.12 | O43: 5366.19
B44: 蓄積 | C44: 175964 | D44: 202898 | E44: 9349 | F44: 68051 | G44: 1077684 | H44: 2139 | I44: 1536085 | L44: 34 | M44: 538 | N44: 572 | O44: 1536657
B45: 成長 | C45: 2092 | D45: 2780.4 | E45: 128.7 | F45: 616.9 | G45: 13401.4 | H45: 39 | I45: 19058.4 | L45: 0.4 | M45: 9 | N45: 9.4 | O45: 19067.8
A46: 14 | B46: 面積 | C46: 422.42 | D46: 484.72 | E46: 31.29 | F46: 252.73 | G46: 2787.04 | H46: 5.54 | I46: 3983.74 | M46: 1.4 | N46: 1.4 | O46: 3985.14
B47: 蓄積 | C47: 154095 | D47: 136128 | E47: 8866 | F47: 58523 | G47: 822087 | H47: 1029 | I47: 1180728 | M47: 153 | N47: 153 | O47: 1180881
B48: 成長 | C48: 1533.3 | D48: 1634.1 | E48: 106.1 | F48: 489 | G48: 8755.9 | H48: 16.5 | I48: 12534.9 | M48: 1.8 | N48: 1.8 | O48: 12536.7
A49: 15 以上 | B49: 面積 | C49: 444.43 | D49: 1596.6 | E49: 111.21 | F49: 112.74 | G49: 1239.39 | H49: 5.53 | I49: 3509.9 | M49: 5.6 | N49: 5.6 | O49: 3515.5
B50: 蓄積 | C50: 172636 | D50: 482910 | E50: 34063 | F50: 29055 | G50: 372866 | H50: 1186 | I50: 1092716 | M50: 722 | N50: 722 | O50: 1093438
B51: 成長 | C51: 540.3 | D51: 752.6 | E51: 44.2 | F51: 147 | G51: 2183.6 | H51: 11 | I51: 3678.7 | M51: 5.2 | N51: 5.2 | O51: 3683.9
A52: 計 | B52: 面積 | C52: =SUM(C7,C10,C13,C16,C19,C22,C25,C28,C31,C34,C37,C40,C43,C46,C49) -> 1873.25 | D52: 10187.58 | E52: 222.73 | F52: 2261.04 | G52: 11673.07 | H52: 100.73 | I52: 26318.4 | J52: =SUM(J7,J10,J13,J16,J19,J22,J25,J28,J31,J34,J37,J40,J43,J46,J49) -> 0 | K52: =SUM(K7,K10,K13,K16,K19,K22,K25,K28,K31,K34,K37,K40,K43,K46,K49) -> 0 | L52: =SUM(L7,L10,L13,L16,L19,L22,L25,L28,L31,L34,L37,L40,L43,L46,L49) -> 3.07 | M52: =SUM(M7,M10,M13,M16,M19,M22,M25,M28,M31,M34,M37,M40,M43,M46,M49) -> 72.12 | N52: =SUM(J52:M52) -> 75.19 | O52: 26393.59
B53: 蓄積 | C53: 664324 | D53: 2357018 | E53: 62866 | F53: 507053 | G53: 3311037 | H53: 13991 | I53: 6916289 | J53: =SUM(J8,J11,J14,J17,J20,J23,J26,J29,J32,J35,J38,J41,J44,J47,J50) -> 0 | K53: 0 | L53: 231 | M53: 4972 | N53: =SUM(J53:M53) -> 5203 | O53: 6921492
B54: 成長 | C54: 6307.9 | D54: 37161.3 | E54: 467.7 | F54: 4961.4 | G54: 38236.7 | H54: 360.3 | I54: 87495.3 | J54: 0 | K54: 0 | L54: 5.3 | M54: 132.1 | N54: =SUM(J54:M54) -> 137.4 | O54: 87632.7

Sheet 松本
A1: 第5表 地域振興局別・人工林天然林別・資源構成表
A3: 松本地域振興局(人工林) | O3: 単位 面積 : ha、蓄積 成長量 : ㎥
B4: 樹種 | C4: 針 葉 樹 | J4: 広 葉 樹 | O4: 計
C5: ス ギ | D5: ヒ ノ キ | E5: サ ワ ラ | F5: ア カ マ ツ | G5: カ ラ マ ツ | H5: そ の 他 針 | I5: 小 計 | J5: ク ヌ ギ | K5: ブ ナ | L5: ナ ラ | M5: そ の 他 広 | N5: 小 計
A6: 齢級
A7: 1 | B7: 面積 | C7: 6.53 | D7: 6.62 | F7: 4.42 | G7: 84.43 | I7: 102 | L7: 27.41 | M7: 44.3 | N7: 71.71 | O7: =SUM(N7,I7) -> 173.71
B8: 蓄積 | C8: 0 | D8: 0 | F8: 0 | G8: 0 | I8: 0 | L8: 0 | M8: 0 | N8: 0 | O8: =SUM(N8,I8) -> 0
B9: 成長 | C9: 0 | D9: 0 | F9: 0 | G9: 0 | I9: 0 | L9: 0 | M9: 0 | N9: 0 | O9: 0
A10: 2 | B10: 面積 | C10: 0.15 | D10: 17.03 | F10: 0.09 | G10: 23.19 | H10: 4.82 | I10: 45.28 | J10: 0.2 | L10: 14.96 | M10: 12.97 | N10: 28.13 | O10: 73.41
B11: 蓄積 | C11: 0 | D11: 0 | F11: 0 | G11: 0 | H11: 0 | I11: 0 | J11: 4 | L11: 152 | M11: 126 | N11: 282 | O11: 282
B12: 成長 | C12: 0 | D12: 0 | F12: 0 | G12: 0 | H12: 0 | I12: 0 | J12: 1.2 | L12: 20.7 | M12: 17.5 | N12: 39.4 | O12: 39.4
A13: 3 | B13: 面積 | C13: 0.05 | D13: 19.15 | F13: 0.97 | G13: 0.12 | H13: 0.04 | I13: 20.33 | K13: 6.68 | L13: 0.07 | M13: 16.76 | N13: 23.51 | O13: 43.84
B14: 蓄積 | C14: 3 | D14: 565 | F14: 52 | G14: 113 | H14: 1 | I14: 734 | K14: 27 | L14: 2 | M14: 345 | N14: 374 | O14: 1108
B15: 成長 | C15: 0.7 | D15: 114.7 | F15: 7 | G15: 11.3 | H15: 0.1 | I15: 133.8 | K15: 5.8 | L15: 0.2 | M15: 31.2 | N15: 37.2 | O15: 171
A16: 4 | B16: 面積 | C16: 0.84 | D16: 28.94 | F16: 1.58 | G16: 0.55 | H16: 0.12 | I16: 32.03 | J16: 1.14 | M16: 6.37 | N16: 7.51 | O16: 39.54
B17: 蓄積 | C17: 74 | D17: 1600 | F17: 117 | G17: 41 | H17: 45 | I17: 1877 | J17: 64 | L17: 35 | M17: 384 | N17: 483 | O17: 2360
B18: 成長 | C18: 8.9 | D18: 161.8 | F18: 9.8 | G18: 3 | H18: 3.9 | I18: 187.4 | J18: 2.9 | L18: 2.4 | M18: 25.9 | N18: 31.2 | O18: 218.6
A19: 5 | B19: 面積 | C19: 1.26 | D19: 87.93 | F19: 7.57 | G19: 10.4 | H19: 0.56 | I19: 107.72 | J19: 0.68 | L19: 1.4 | M19: 13.56 | N19: 15.64 | O19: 123.36
B20: 蓄積 | C20: 182 | D20: 8456 | F20: 736 | G20: 2250 | H20: 497 | I20: 12121 | J20: 41 | K20: 115 | L20: 172 | M20: 1626 | N20: 1954 | O20: 14075
B21: 成長 | C21: 13 | D21: 528.2 | F21: 38.9 | G21: 122.2 | H21: 33.3 | I21: 735.6 | J21: 1.3 | K21: 9.2 | L21: 8.9 | M21: 83.3 | N21: 102.7 | O21: 838.3
A22: 6 | B22: 面積 | C22: 4.52 | D22: 182.47 | F22: 10.31 | G22: 28.04 | H22: 4.36 | I22: 229.7 | M22: 5.79 | N22: 5.79 | O22: 235.49
B23: 蓄積 | C23: 1015 | D23: 24403 | F23: 3888 | G23: 4475 | H23: 850 | I23: 34631 | K23: 33 | L23: 148 | M23: 831 | N23: 1012 | O23: 35643
B24: 成長 | C24: 50.5 | D24: 1265.4 | F24: 149.2 | G24: 172.2 | H24: 46.1 | I24: 1683.4 | K24: 2.2 | L24: 6.1 | M24: 33.6 | N24: 41.9 | O24: 1725.3
A25: 7 | B25: 面積 | C25: 12.1 | D25: 280.98 | E25: 0.7 | F25: 107.5 | G25: 55.72 | H25: 8.29 | I25: 465.29 | J25: 4.19 | L25: 0.03 | M25: 12.45 | N25: 16.67 | O25: 481.96
B26: 蓄積 | C26: 2871 | D26: 38368 | E26: 52 | F26: 14876 | G26: 9126 | H26: 2393 | I26: 67686 | J26: 301 | L26: 2 | M26: 679 | N26: 982 | O26: 68668
B27: 成長 | C27: 107.3 | D27: 1573.1 | E27: 2.5 | F27: 443.4 | G27: 261.6 | H27: 105 | I27: 2492.9 | J27: 4.1 | L27: 0.1 | M27: 20.7 | N27: 24.9 | O27: 2517.8
A28: 8 | B28: 面積 | C28: 30.03 | D28: 321.75 | E28: 1.35 | F28: 62.1 | G28: 161 | H28: 62.21 | I28: 638.44 | J28: 0.06 | L28: 0.03 | M28: 27.25 | N28: 27.34 | O28: 665.78
B29: 蓄積 | C29: 9055 | D29: 45475 | E29: 124 | F29: 9799 | G29: 27627 | H29: 7248 | I29: 99328 | J29: 5 | L29: 1 | M29: 1889 | N29: 1895 | O29: 101223
B30: 成長 | C30: 251.9 | D30: 1440.6 | E30: 4.8 | F30: 224.8 | G30: 671.6 | H30: 268.1 | I30: 2861.8 | J30: 0.1 | L30: 0 | M30: 56.6 | N30: 56.7 | O30: 2918.5
A31: 9 | B31: 面積 | C31: 74.34 | D31: 473.99 | E31: 0.07 | F31: 301.64 | G31: 328.18 | H31: 85.68 | I31: 1263.9 | M31: 9.68 | N31: 9.68 | O31: 1273.58
B32: 蓄積 | C32: 25645 | D32: 62973 | E32: 12 | F32: 52100 | G32: 61406 | H32: 9654 | I32: 211790 | M32: 524 | N32: 524 | O32: 212314
B33: 成長 | C33: 447.9 | D33: 1818.1 | E33: 0.3 | F33: 824.1 | G33: 1214.4 | H33: 323 | I33: 4627.8 | M33: 13.4 | N33: 13.4 | O33: 4641.2
A34: 10 | B34: 面積 | C34: 168.03 | D34: 395.15 | E34: 0.56 | F34: 906.54 | G34: 1001.18 | H34: 213.14 | I34: 2684.6 | J34: 0.2 | M34: 22.06 | N34: 22.26 | O34: 2706.86
B35: 蓄積 | C35: 61866 | D35: 59043 | E35: 100 | F35: 167641 | G35: 200730 | H35: 25333 | I35: 514713 | J35: 14 | M35: 1912 | N35: 1926 | O35: 516639
B36: 成長 | C36: 949.7 | D36: 1287.8 | E36: 2.1 | F36: 2305.6 | G36: 3302 | H36: 692 | I36: 8539.2 | J36: 0 | M36: 47.9 | N36: 47.9 | O36: 8587.1
A37: 11 | B37: 面積 | C37: 214.41 | D37: 174.65 | E37: 1.32 | F37: 2099.21 | G37: 1875.9 | H37: 135.64 | I37: 4501.13 | M37: 54.87 | N37: 54.87 | O37: 4556
B38: 蓄積 | C38: 85266 | D38: 29163 | E38: 254 | F38: 415412 | G38: 411699 | H38: 16461 | I38: 958255 | M38: 4363 | N38: 4363 | O38: 962618
B39: 成長 | C39: 1047.8 | D39: 563.9 | E39: 4.9 | F39: 4708.9 | G39: 5981.4 | H39: 384.8 | I39: 12691.7 | M39: 82.1 | N39: 82.1 | O39: 12773.8
A40: 12 | B40: 面積 | C40: 306.38 | D40: 49.65 | E40: 0.01 | F40: 3189.79 | G40: 5079.65 | H40: 27.82 | I40: 8653.3 | M40: 28.13 | N40: 28.13 | O40: 8681.43
B41: 蓄積 | C41: 127544 | D41: 9343 | E41: 1 | F41: 658106 | G41: 1210119 | H41: 3592 | I41: 2008705 | M41: 1903 | N41: 1903 | O41: 2010608
B42: 成長 | C42: 1320.7 | D42: 146.2 | E42: 0 | F42: 6407.8 | G42: 15742 | H42: 68 | I42: 23684.7 | M42: 34 | N42: 34 | O42: 23718.7
A43: 13 | B43: 面積 | C43: 374.33 | D43: 62.07 | E43: 8.82 | F43: 2299.61 | G43: 7005.15 | H43: 86.79 | I43: 9836.77 | J43: 1.1 | L43: 0.1 | M43: 43.71 | N43: 44.91 | O43: 9881.68
B44: 蓄積 | C44: 159043 | D44: 12265 | E44: 1374 | F44: 483696 | G44: 1699106 | H44: 12106 | I44: 2367590 | J44: 93 | L44: 12 | M44: 4003 | N44: 4108 | O44: 2371698
B45: 成長 | C45: 1618.3 | D45: 192.3 | E45: 20.6 | F45: 4629.1 | G45: 21521.1 | H45: 229.2 | I45: 28210.6 | J45: 0 | L45: 0.2 | M45: 62.9 | N45: 63.1 | O45: 28273.7
A46: 14 | B46: 面積 | C46: 360.88 | D46: 79.66 | E46: 10.09 | F46: 920.31 | G46: 6017.85 | H46: 7.1 | I46: 7395.89 | L46: 0.3 | M46: 63.99 | N46: 64.29 | O46: 7460.18
B47: 蓄積 | C47: 153362 | D47: 16729 | E47: 1465 | F47: 200971 | G47: 1536389 | H47: 866 | I47: 1909782 | L47: 29 | M47: 4773 | N47: 4802 | O47: 1914584
B48: 成長 | C48: 1446.5 | D48: 231.8 | E48: 21.8 | F48: 1659.7 | G48: 16957.9 | H48: 14.3 | I48: 20332 | L48: 0.4 | M48: 57.3 | N48: 57.7 | O48: 20389.7
A49: 15 以上 | B49: 面積 | C49: 816.37 | D49: 881.09 | E49: 37.07 | F49: 257.89 | G49: 4623.89 | H49: 9.82 | I49: 6626.13 | L49: 2.25 | M49: 72.55 | N49: 74.8 | O49: 6700.93
B50: 蓄積 | C50: 404807 | D50: 206460 | E50: 7630 | F50: 58217 | G50: 1266659 | H50: 1976 | I50: 1945749 | L50: 212 | M50: 7384 | N50: 7596 | O50: 1953345
B51: 成長 | C51: 2346.8 | D51: 738.7 | E51: 45.8 | F51: 340.2 | G51: 7063.8 | H51: 22.4 | I51: 10557.7 | L51: 2.3 | M51: 39 | N51: 41.3 | O51: 10599
A52: 計 | B52: 面積 | C52: =SUM(C7,C10,C13,C16,C19,C22,C25,C28,C31,C34,C37,C40,C43,C46,C49) -> 2370.22 | D52: 3061.13 | E52: 59.99 | F52: 10169.53 | G52: 26295.25 | H52: 646.39 | I52: 42602.51 | J52: =SUM(J7,J10,J13,J16,J19,J22,J25,J28,J31,J34,J37,J40,J43,J46,J49) -> 7.57 | K52: =SUM(K7,K10,K13,K16,K19,K22,K25,K28,K31,K34,K37,K40,K43,K46,K49) -> 6.68 | L52: =SUM(L7,L10,L13,L16,L19,L22,L25,L28,L31,L34,L37,L40,L43,L46,L49) -> 46.55 | M52: =SUM(M7,M10,M13,M16,M19,M22,M25,M28,M31,M34,M37,M40,M43,M46,M49) -> 434.44 | N52: =SUM(J52:M52) -> 495.24 | O52: 43097.75
B53: 蓄積 | C53: 1030733 | D53: 514843 | E53: 11012 | F53: 2065611 | G53: 6429740 | H53: 81022 | I53: 10132961 | J53: =SUM(J8,J11,J14,J17,J20,J23,J26,J29,J32,J35,J38,J41,J44,J47,J50) -> 522 | K53: 175 | L53: 765 | M53: 30742 | N53: =SUM(J53:M53) -> 32204 | O53: 10165165
B54: 成長 | C54: 9610 | D54: 10062.6 | E54: 102.8 | F54: 21748.5 | G54: 73024.5 | H54: 2190.2 | I54: 116738.6 | J54: 9.6 | K54: 17.2 | L54: 41.3 | M54: 605.4 | N54: =SUM(J54:M54) -> 673.5 | O54: 117412.1

Sheet 北アルプス
A1: 第5表 地域振興局別・人工林天然林別・資源構成表
A3: 北アルプス地域振興局(人工林) | O3: 単位 面積 : ha、蓄積 成長量 : ㎥
B4: 樹種 | C4: 針 葉 樹 | J4: 広 葉 樹 | O4: 計
C5: ス ギ | D5: ヒ ノ キ | E5: サ ワ ラ | F5: ア カ マ ツ | G5: カ ラ マ ツ | H5: そ の 他 針 | I5: 小 計 | J5: ク ヌ ギ | K5: ブ ナ | L5: ナ ラ | M5: そ の 他 広 | N5: 小 計
A6: 齢級
A7: 1 | B7: 面積 | C7: 1.54 | D7: 1.21 | G7: 16 | I7: 18.75 | J7: 0.52 | L7: 9.37 | M7: 2.98 | N7: 12.87 | O7: =SUM(N7,I7) -> 31.62
B8: 蓄積 | C8: 0 | D8: 0 | G8: 0 | I8: 0 | J8: 0 | L8: 0 | M8: 0 | N8: 0 | O8: =SUM(N8,I8) -> 0
B9: 成長 | C9: 0 | D9: 0 | G9: 0 | I9: 0 | J9: 0 | L9: 0 | M9: 0 | N9: 0 | O9: 0
A10: 2 | B10: 面積 | D10: 4.49 | G10: 23.53 | I10: 28.02 | L10: 5.07 | N10: 5.07 | O10: 33.09
B11: 蓄積 | D11: 0 | G11: 0 | I11: 0 | L11: 57 | N11: 57 | O11: 57
B12: 成長 | D12: 0 | G12: 0 | I12: 0 | L12: 7.8 | N12: 7.8 | O12: 7.8
A13: 3 | B13: 面積 | C13: 1.54 | D13: 46.7 | F13: 0.22 | I13: 48.46 | L13: 2.87 | M13: 14.55 | N13: 17.42 | O13: 65.88
B14: 蓄積 | C14: 90 | D14: 1288 | F14: 11 | I14: 1389 | L14: 61 | M14: 286 | N14: 347 | O14: 1736
B15: 成長 | C15: 24.3 | D15: 251.4 | F15: 1.5 | I15: 277.2 | L15: 5.3 | M15: 28.5 | N15: 33.8 | O15: 311
A16: 4 | B16: 面積 | C16: 40.82 | D16: 60.75 | F16: 0.93 | G16: 0.65 | H16: 0.2 | I16: 103.35 | L16: 1.34 | M16: 3.17 | N16: 4.51 | O16: 107.86
B17: 蓄積 | C17: 2978 | D17: 2365 | F17: 71 | G17: 41 | H17: 5 | I17: 5460 | L17: 43 | M17: 314 | N17: 357 | O17: 5817
B18: 成長 | C18: 382.9 | D18: 236.8 | F18: 5.8 | G18: 3.3 | H18: 0.4 | I18: 629.2 | L18: 2.9 | M18: 21.3 | N18: 24.2 | O18: 653.4
A19: 5 | B19: 面積 | C19: 27.33 | D19: 100.56 | F19: 1.12 | G19: 19.57 | H19: 0.64 | I19: 149.22 | L19: 1.82 | M19: 11.85 | N19: 13.67 | O19: 162.89
B20: 蓄積 | C20: 3191 | D20: 6278 | F20: 83 | G20: 1883 | H20: 19 | I20: 11454 | K20: 3 | L20: 71 | M20: 1084 | N20: 1158 | O20: 12612
B21: 成長 | C21: 248 | D21: 397.6 | F21: 5 | G21: 103.1 | H21: 1.3 | I21: 755 | K21: 0.2 | L21: 3.6 | M21: 55.5 | N21: 59.3 | O21: 814.3
A22: 6 | B22: 面積 | C22: 31.45 | D22: 128.82 | F22: 6.09 | G22: 19.64 | H22: 0.38 | I22: 186.38 | L22: 0.17 | M22: 3.85 | N22: 4.02 | O22: 190.4
B23: 蓄積 | C23: 5811 | D23: 9762 | F23: 602 | G23: 2602 | H23: 17 | I23: 18794 | L23: 7 | M23: 266 | N23: 273 | O23: 19067
B24: 成長 | C24: 298.1 | D24: 523.8 | F24: 27.6 | G24: 97.8 | H24: 0.9 | I24: 948.2 | L24: 0.2 | M24: 10.7 | N24: 10.9 | O24: 959.1
A25: 7 | B25: 面積 | C25: 143.07 | D25: 71.53 | F25: 5.54 | G25: 32.14 | H25: 0.07 | I25: 252.35 | N25: 0 | O25: 252.35
B26: 蓄積 | C26: 29755 | D26: 7892 | F26: 681 | G26: 5963 | H26: 1 | I26: 44292 | M26: 39 | N26: 39 | O26: 44331
B27: 成長 | C27: 1209.9 | D27: 334.8 | F27: 21.6 | G27: 179 | H27: 0 | I27: 1745.3 | M27: 1.2 | N27: 1.2 | O27: 1746.5
A28: 8 | B28: 面積 | C28: 242.8 | D28: 77.27 | F28: 5.35 | G28: 17.79 | H28: 0.1 | I28: 343.31 | M28: 6.23 | N28: 6.23 | O28: 349.54
B29: 蓄積 | C29: 60262 | D29: 12489 | F29: 741 | G29: 3193 | H29: 8 | I29: 76693 | M29: 339 | N29: 339 | O29: 77032
B30: 成長 | C30: 1753.4 | D30: 406.3 | F30: 19.7 | G30: 77 | H30: 0.3 | I30: 2256.7 | M30: 10.2 | N30: 10.2 | O30: 2266.9
A31: 9 | B31: 面積 | C31: 380.41 | D31: 239.96 | E31: 0.1 | F31: 55.33 | G31: 31.06 | H31: 9.06 | I31: 715.92 | L31: 1.97 | M31: 6.55 | N31: 8.52 | O31: 724.44
B32: 蓄積 | C32: 106297 | D32: 27500 | E32: 8 | F32: 9213 | G32: 5549 | H32: 1002 | I32: 149569 | L32: 122 | M32: 483 | N32: 605 | O32: 150174
B33: 成長 | C33: 2016.5 | D33: 836.4 | E33: 0.3 | F33: 147.2 | G33: 108 | H33: 33.3 | I33: 3141.7 | L33: 3 | M33: 13.5 | N33: 16.5 | O33: 3158.2
A34: 10 | B34: 面積 | C34: 664.47 | D34: 140.74 | E34: 0.11 | F34: 213.85 | G34: 64.67 | H34: 38.04 | I34: 1121.88 | J34: 0.04 | M34: 4.98 | N34: 5.02 | O34: 1126.9
B35: 蓄積 | C35: 208172 | D35: 18661 | E35: 20 | F35: 36260 | G35: 14214 | H35: 4366 | I35: 281693 | J35: 3 | M35: 413 | N35: 416 | O35: 282109
B36: 成長 | C36: 3357.8 | D36: 424 | E36: 0.4 | F36: 522.2 | G36: 226.7 | H36: 119.7 | I36: 4650.8 | J36: 0 | M36: 10.4 | N36: 10.4 | O36: 4661.2
A37: 11 | B37: 面積 | C37: 1024.68 | D37: 111.62 | E37: 1.43 | F37: 500.4 | G37: 91.4 | H37: 35.79 | I37: 1765.32 | M37: 0.98 | N37: 0.98 | O37: 1766.3
B38: 蓄積 | C38: 347401 | D38: 13122 | E38: 164 | F38: 90814 | G38: 19550 | H38: 4068 | I38: 475119 | M38: 92 | N38: 92 | O38: 475211
B39: 成長 | C39: 4537.5 | D39: 299.8 | E39: 3.9 | F39: 1055.8 | G39: 286.4 | H39: 93.7 | I39: 6277.1 | M39: 1.8 | N39: 1.8 | O39: 6278.9
A40: 12 | B40: 面積 | C40: 1034.93 | D40: 40.97 | F40: 618.79 | G40: 368.07 | H40: 0.27 | I40: 2063.03 | M40: 33.41 | N40: 33.41 | O40: 2096.44
B41: 蓄積 | C41: 378394 | D41: 5105 | F41: 118031 | G41: 84846 | H41: 36 | I41: 586412 | M41: 3056 | N41: 3056 | O41: 589468
B42: 成長 | C42: 4153.2 | D42: 98.3 | F42: 1212.5 | G42: 1108.3 | H42: 0.7 | I42: 6573 | M42: 54.5 | N42: 54.5 | O42: 6627.5
A43: 13 | B43: 面積 | C43: 957.99 | D43: 38.54 | F43: 546.5 | G43: 868.81 | H43: 1.93 | I43: 2413.77 | M43: 5.18 | N43: 5.18 | O43: 2418.95
B44: 蓄積 | C44: 349932 | D44: 6818 | F44: 108202 | G44: 197734 | H44: 263 | I44: 662949 | M44: 214 | N44: 214 | O44: 663163
B45: 成長 | C45: 3801.5 | D45: 114.3 | F45: 1062.6 | G45: 2540.1 | H45: 4.9 | I45: 7523.4 | M45: 3.5 | N45: 3.5 | O45: 7526.9
A46: 14 | B46: 面積 | C46: 766.84 | D46: 27.77 | F46: 182.12 | G46: 934.89 | H46: 0.14 | I46: 1911.76 | M46: 0.89 | N46: 0.89 | O46: 1912.65
B47: 蓄積 | C47: 290380 | D47: 4933 | F47: 38841 | G47: 236077 | H47: 23 | I47: 570254 | M47: 94 | N47: 94 | O47: 570348
B48: 成長 | C48: 2911.2 | D48: 68.4 | F48: 321.6 | G48: 2614.7 | H48: 0.4 | I48: 5916.3 | M48: 1.3 | N48: 1.3 | O48: 5917.6
A49: 15 以上 | B49: 面積 | C49: 1483.01 | D49: 143.93 | E49: 0.25 | F49: 46.08 | G49: 955.23 | H49: 2.11 | I49: 2630.61 | L49: 1.73 | M49: 16.75 | N49: 18.48 | O49: 2649.09
B50: 蓄積 | C50: 647926 | D50: 29630 | E50: 56 | F50: 10433 | G50: 256998 | H50: 358 | I50: 945401 | L50: 116 | M50: 1543 | N50: 1659 | O50: 947060
B51: 成長 | C51: 4222.5 | D51: 90.5 | E51: 0 | F51: 59.2 | G51: 1438 | H51: 3.4 | I51: 5813.6 | L51: 1.2 | M51: 4.6 | N51: 5.8 | O51: 5819.4
A52: 計 | B52: 面積 | C52: =SUM(C7,C10,C13,C16,C19,C22,C25,C28,C31,C34,C37,C40,C43,C46,C49) -> 6800.88 | D52: 1234.86 | E52: 1.89 | F52: 2182.32 | G52: 3443.45 | H52: 88.73 | I52: 13752.13 | J52: =SUM(J7,J10,J13,J16,J19,J22,J25,J28,J31,J34,J37,J40,J43,J46,J49) -> 0.56 | K52: =SUM(K7,K10,K13,K16,K19,K22,K25,K28,K31,K34,K37,K40,K43,K46,K49) -> 0 | L52: =SUM(L7,L10,L13,L16,L19,L22,L25,L28,L31,L34,L37,L40,L43,L46,L49) -> 24.34 | M52: =SUM(M7,M10,M13,M16,M19,M22,M25,M28,M31,M34,M37,M40,M43,M46,M49) -> 111.37 | N52: =SUM(J52:M52) -> 136.27 | O52: 13888.4
B53: 蓄積 | C53: 2430589 | D53: 145843 | E53: 248 | F53: 413983 | G53: 828650 | H53: 10166 | I53: 3829479 | J53: =SUM(J8,J11,J14,J17,J20,J23,J26,J29,J32,J35,J38,J41,J44,J47,J50) -> 3 | K53: 3 | L53: 477 | M53: 8223 | N53: =SUM(J53:M53) -> 8706 | O53: 3838185
B54: 成長 | C54: 28916.8 | D54: 4082.4 | E54: 4.6 | F54: 4462.3 | G54: 8782.4 | H54: 259 | I54: 46507.5 | J54: 0 | K54: 0.2 | L54: 24 | M54: 217 | N54: =SUM(J54:M54) -> 241.2 | O54: 46748.7

Sheet 長野
A1: 第5表 地域振興局別・人工林天然林別・資源構成表
A3: 長野地域振興局(人工林) | O3: 単位 面積 : ha、蓄積 成長量 : ㎥
B4: 樹種 | C4: 針 葉 樹 | J4: 広 葉 樹 | O4: 計
C5: ス ギ | D5: ヒ ノ キ | E5: サ ワ ラ | F5: ア カ マ ツ | G5: カ ラ マ ツ | H5: そ の 他 針 | I5: 小 計 | J5: ク ヌ ギ | K5: ブ ナ | L5: ナ ラ | M5: そ の 他 広 | N5: 小 計
A6: 齢級
A7: 1 | B7: 面積 | C7: 5.87 | F7: 1.59 | G7: 13.43 | I7: 20.89 | N7: 0 | O7: =SUM(N7,I7) -> 20.89
B8: 蓄積 | C8: 0 | F8: 0 | G8: 0 | I8: 0 | N8: 0 | O8: =SUM(N8,I8) -> 0
B9: 成長 | C9: 0 | F9: 0 | G9: 0 | I9: 0 | N9: 0 | O9: 0
A10: 2 | B10: 面積 | C10: 0.96 | D10: 0.2 | G10: 19.45 | I10: 20.61 | L10: 4.73 | M10: 0.26 | N10: 4.99 | O10: 25.6
B11: 蓄積 | C11: 0 | D11: 0 | G11: 0 | I11: 0 | L11: 63 | M11: 2 | N11: 65 | O11: 65
B12: 成長 | C12: 0 | D12: 0 | G12: 0 | I12: 0 | L12: 9.1 | M12: 0.3 | N12: 9.4 | O12: 9.4
A13: 3 | B13: 面積 | C13: 4.51 | D13: 1.15 | G13: 7.86 | I13: 13.52 | K13: 0.06 | L13: 0.1 | N13: 0.16 | O13: 13.68
B14: 蓄積 | C14: 440 | D14: 1323 | G14: 3166 | I14: 4929 | K14: 1 | L14: 3 | N14: 4 | O14: 4933
B15: 成長 | C15: 108.5 | D15: 243.6 | G15: 316.6 | I15: 668.7 | K15: 0.1 | L15: 0.3 | N15: 0.4 | O15: 669.1
A16: 4 | B16: 面積 | C16: 9.14 | D16: 18.4 | F16: 0.49 | G16: 4.39 | I16: 32.42 | J16: 8.15 | M16: 3.86 | N16: 12.01 | O16: 44.43
B17: 蓄積 | C17: 1348 | D17: 2718 | F17: 45 | G17: 495 | I17: 4606 | J17: 233 | M17: 126 | N17: 359 | O17: 4965
B18: 成長 | C18: 139.8 | D18: 270 | F18: 3.6 | G18: 34.1 | I18: 447.5 | J18: 10.8 | M18: 8.7 | N18: 19.5 | O18: 467
A19: 5 | B19: 面積 | C19: 23.11 | D19: 47.38 | F19: 0.37 | G19: 10.66 | H19: 13.46 | I19: 94.98 | K19: 3.05 | L19: 8.17 | M19: 35.45 | N19: 46.67 | O19: 141.65
B20: 蓄積 | C20: 4832 | D20: 5506 | F20: 22 | G20: 1376 | H20: 445 | I20: 12181 | K20: 69 | L20: 362 | M20: 1496 | N20: 1927 | O20: 14108
B21: 成長 | C21: 339.9 | D21: 326.3 | F21: 1.3 | G21: 74.6 | H21: 30.7 | I21: 772.8 | K21: 5.4 | L21: 19.2 | M21: 81 | N21: 105.6 | O21: 878.4
A22: 6 | B22: 面積 | C22: 112.7 | D22: 49.37 | F22: 0.55 | G22: 18.14 | H22: 17.62 | I22: 198.38 | J22: 1.94 | L22: 12.59 | M22: 25.6 | N22: 40.13 | O22: 238.51
B23: 蓄積 | C23: 28766 | D23: 7590 | F23: 78 | G23: 2786 | H23: 1127 | I23: 40347 | J23: 144 | L23: 624 | M23: 1817 | N23: 2585 | O23: 42932
B24: 成長 | C24: 1387.5 | D24: 338.4 | F24: 3 | G24: 100.4 | H24: 60.7 | I24: 1890 | J24: 3.3 | L24: 25 | M24: 74 | N24: 102.3 | O24: 1992.3
A25: 7 | B25: 面積 | C25: 311.6 | D25: 57.23 | F25: 1.16 | G25: 20.12 | H25: 18.33 | I25: 408.44 | L25: 1 | M25: 22.65 | N25: 23.65 | O25: 432.09
B26: 蓄積 | C26: 92730 | D26: 10727 | F26: 172 | G26: 3909 | H26: 1090 | I26: 108628 | L26: 65 | M26: 1201 | N26: 1266 | O26: 109894
B27: 成長 | C27: 3479.6 | D27: 372.6 | F27: 4.3 | G27: 111.5 | H27: 48 | I27: 4016 | L27: 2 | M27: 36.9 | N27: 38.9 | O27: 4054.9
A28: 8 | B28: 面積 | C28: 744.22 | D28: 64.84 | F28: 8.02 | G28: 58.41 | H28: 12.62 | I28: 888.11 | L28: 0.76 | M28: 27.42 | N28: 28.18 | O28: 916.29
B29: 蓄積 | C29: 261039 | D29: 16400 | F29: 1398 | G29: 11543 | H29: 786 | I29: 291166 | L29: 51 | M29: 2189 | N29: 2240 | O29: 293406
B30: 成長 | C30: 8495.2 | D30: 453.7 | F30: 29.4 | G30: 268.4 | H30: 29 | I30: 9275.7 | L30: 1.5 | M30: 66 | N30: 67.5 | O30: 9343.2
A31: 9 | B31: 面積 | C31: 1350.45 | D31: 141.54 | F31: 100.83 | G31: 89.52 | H31: 61.56 | I31: 1743.9 | M31: 21.6 | N31: 21.6 | O31: 1765.5
B32: 蓄積 | C32: 537224 | D32: 29128 | F32: 19682 | G32: 19463 | H32: 5474 | I32: 610971 | M32: 1689 | N32: 1689 | O32: 612660
B33: 成長 | C33: 12405.9 | D33: 666.6 | F33: 299.5 | G33: 420.9 | H33: 173.8 | I33: 13966.7 | M33: 47.4 | N33: 47.4 | O33: 14014.1
A34: 10 | B34: 面積 | C34: 1526.31 | D34: 95.52 | F34: 201.26 | G34: 456.77 | H34: 52.88 | I34: 2332.74 | M34: 3.9 | N34: 3.9 | O34: 2336.64
B35: 蓄積 | C35: 658921 | D35: 20783 | F35: 40005 | G35: 104842 | H35: 4846 | I35: 829397 | M35: 343 | N35: 343 | O35: 829740
B36: 成長 | C36: 11314.2 | D36: 381.2 | F36: 533.7 | G36: 1620.7 | H36: 133.4 | I36: 13983.2 | M36: 8.7 | N36: 8.7 | O36: 13991.9
A37: 11 | B37: 面積 | C37: 2139.22 | D37: 84.97 | F37: 391.23 | G37: 771.46 | H37: 19.9 | I37: 3406.78 | L37: 0.67 | M37: 5.59 | N37: 6.26 | O37: 3413.04
B38: 蓄積 | C38: 995193 | D38: 19997 | F38: 82200 | G38: 203687 | H38: 2073 | I38: 1303150 | L38: 34 | M38: 488 | N38: 522 | O38: 1303672
B39: 成長 | C39: 12163.1 | D39: 325.8 | F39: 918.1 | G39: 2868.8 | H39: 49.3 | I39: 16325.1 | L39: 0.7 | M39: 9.6 | N39: 10.3 | O39: 16335.4
A40: 12 | B40: 面積 | C40: 2667.25 | D40: 8.4 | F40: 688.03 | G40: 2737.59 | H40: 6.72 | I40: 6107.99 | M40: 8.61 | N40: 8.61 | O40: 6116.6
B41: 蓄積 | C41: 1320818 | D41: 2220 | F41: 148128 | G41: 762135 | H41: 1160 | I41: 2234461 | M41: 976 | N41: 976 | O41: 2235437
B42: 成長 | C42: 14587.8 | D42: 31.1 | F42: 1390.6 | G42: 9913.9 | H42: 22.2 | I42: 25945.6 | M42: 19.1 | N42: 19.1 | O42: 25964.7
A43: 13 | B43: 面積 | C43: 2640.28 | D43: 7.24 | E43: 0.39 | F43: 408.31 | G43: 5520.2 | H43: 10.24 | I43: 8586.66 | J43: 1.99 | L43: 0.06 | M43: 6.48 | N43: 8.53 | O43: 8595.19
B44: 蓄積 | C44: 1354745 | D44: 1895 | E44: 107 | F44: 92109 | G44: 1570105 | H44: 1605 | I44: 3020566 | J44: 172 | L44: 7 | M44: 676 | N44: 855 | O44: 3021421
B45: 成長 | C45: 14550.6 | D45: 25.9 | E45: 1.3 | F45: 846 | G45: 20083.4 | H45: 30.1 | I45: 35537.3 | J45: 0 | L45: 0.1 | M45: 11.6 | N45: 11.7 | O45: 35549
A46: 14 | B46: 面積 | C46: 1835.99 | D46: 12.59 | F46: 147.24 | G46: 4060.04 | H46: 2.71 | I46: 6058.57 | J46: 0.08 | L46: 0.41 | M46: 6.34 | N46: 6.83 | O46: 6065.4
B47: 蓄積 | C47: 966776 | D47: 3432 | F47: 34486 | G47: 1211695 | H47: 509 | I47: 2216898 | J47: 6 | L47: 50 | M47: 733 | N47: 789 | O47: 2217687
B48: 成長 | C48: 7966 | D48: 38.7 | F48: 279.4 | G48: 13097.6 | H48: 8.1 | I48: 21389.8 | J48: 0 | L48: 0.6 | M48: 8.2 | N48: 8.8 | O48: 21398.6
A49: 15 以上 | B49: 面積 | C49: 3316.88 | D49: 217.89 | E49: 1.58 | F49: 75.67 | G49: 3385.22 | H49: 11.84 | I49: 7009.08 | L49: 0.57 | M49: 15.16 | N49: 15.73 | O49: 7024.81
B50: 蓄積 | C50: 1895855 | D50: 61908 | E50: 480 | F50: 16654 | G50: 1054354 | H50: 2599 | I50: 3031850 | L50: 227 | M50: 1441 | N50: 1668 | O50: 3033518
B51: 成長 | C51: 8035.1 | D51: 76 | E51: 1.4 | F51: 57.2 | G51: 6180.9 | H51: 6.1 | I51: 14356.7 | L51: 1.8 | M51: 10 | N51: 11.8 | O51: 14368.5
A52: 計 | B52: 面積 | C52: =SUM(C7,C10,C13,C16,C19,C22,C25,C28,C31,C34,C37,C40,C43,C46,C49) -> 16688.49 | D52: 806.72 | E52: 1.97 | F52: 2024.75 | G52: 17173.26 | H52: 227.88 | I52: 36923.07 | J52: =SUM(J7,J10,J13,J16,J19,J22,J25,J28,J31,J34,J37,J40,J43,J46,J49) -> 12.16 | K52: =SUM(K7,K10,K13,K16,K19,K22,K25,K28,K31,K34,K37,K40,K43,K46,K49) -> 3.11 | L52: =SUM(L7,L10,L13,L16,L19,L22,L25,L28,L31,L34,L37,L40,L43,L46,L49) -> 29.06 | M52: =SUM(M7,M10,M13,M16,M19,M22,M25,M28,M31,M34,M37,M40,M43,M46,M49) -> 182.92 | N52: =SUM(J52:M52) -> 227.25 | O52: 37150.32
B53: 蓄積 | C53: 8118687 | D53: 183627 | E53: 587 | F53: 434979 | G53: 4949556 | H53: 21714 | I53: 13709150 | J53: =SUM(J8,J11,J14,J17,J20,J23,J26,J29,J32,J35,J38,J41,J44,J47,J50) -> 555 | K53: 70 | L53: 1486 | M53: 13177 | N53: =SUM(J53:M53) -> 15288 | O53: 13724438
B54: 成長 | C54: 94973.2 | D54: 3549.9 | E54: 2.7 | F54: 4366.1 | G54: 55091.8 | H54: 591.4 | I54: 158575.1 | J54: 14.1 | K54: 5.5 | L54: 60.3 | M54: 381.5 | N54: =SUM(J54:M54) -> 461.4 | O54: 159036.5

Sheet 北信
A1: 第5表 地域振興局別・人工林天然林別・資源構成表
A3: 北信地域振興局(人工林) | O3: 単位 面積 : ha、蓄積 成長量 : ㎥
B4: 樹種 | C4: 針 葉 樹 | J4: 広 葉 樹 | O4: 計
C5: ス ギ | D5: ヒ ノ キ | E5: サ ワ ラ | F5: ア カ マ ツ | G5: カ ラ マ ツ | H5: そ の 他 針 | I5: 小 計 | J5: ク ヌ ギ | K5: ブ ナ | L5: ナ ラ | M5: そ の 他 広 | N5: 小 計
A6: 齢級
A7: 1 | B7: 面積 | I7: 0 | N7: 0 | O7: =SUM(N7,I7) -> 0
B8: 蓄積 | I8: 0 | N8: 0 | O8: =SUM(N8,I8) -> 0
B9: 成長 | I9: 0 | N9: 0 | O9: 0
A10: 2 | B10: 面積 | C10: 4.92 | F10: 0.03 | G10: 3.05 | I10: 8 | K10: 2.38 | M10: 2.08 | N10: 4.46 | O10: 12.46
B11: 蓄積 | C11: 0 | F11: 0 | G11: 0 | I11: 0 | K11: 0 | M11: 31 | N11: 31 | O11: 31
B12: 成長 | C12: 0 | F12: 0 | G12: 0 | I12: 0 | K12: 0 | M12: 4.6 | N12: 4.6 | O12: 4.6
A13: 3 | B13: 面積 | C13: 6.99 | I13: 6.99 | M13: 0.33 | N13: 0.33 | O13: 7.32
B14: 蓄積 | C14: 692 | I14: 692 | M14: 8 | N14: 8 | O14: 700
B15: 成長 | C15: 119.7 | I15: 119.7 | M15: 0.6 | N15: 0.6 | O15: 120.3
A16: 4 | B16: 面積 | C16: 22.35 | F16: 0.32 | G16: 0.02 | I16: 22.69 | J16: 0.3 | K16: 0.7 | L16: 1.31 | M16: 7.8 | N16: 10.11 | O16: 32.8
B17: 蓄積 | C17: 5419 | F17: 25 | G17: 2 | I17: 5446 | J17: 18 | K17: 86 | L17: 43 | M17: 230 | N17: 377 | O17: 5823
B18: 成長 | C18: 550.4 | F18: 2.1 | G18: 0.1 | I18: 552.6 | J18: 0.8 | K18: 8.8 | L18: 2.8 | M18: 15.4 | N18: 27.8 | O18: 580.4
A19: 5 | B19: 面積 | C19: 81.33 | D19: 0.32 | G19: 1.46 | H19: 0.24 | I19: 83.35 | K19: 6.57 | L19: 0.3 | M19: 25 | N19: 31.87 | O19: 115.22
B20: 蓄積 | C20: 14223 | D20: 103 | G20: 186 | H20: 12 | I20: 14524 | K20: 125 | L20: 13 | M20: 1219 | N20: 1357 | O20: 15881
B21: 成長 | C21: 1028.4 | D21: 6 | G21: 10 | H21: 0.8 | I21: 1045.2 | K21: 10 | L21: 0.8 | M21: 63.1 | N21: 73.9 | O21: 1119.1
A22: 6 | B22: 面積 | C22: 137.77 | D22: 0.6 | G22: 1.13 | H22: 0.12 | I22: 139.62 | L22: 5.24 | M22: 11 | N22: 16.24 | O22: 155.86
B23: 蓄積 | C23: 33705 | D23: 83 | G23: 185 | H23: 5 | I23: 33978 | K23: 75 | L23: 251 | M23: 674 | N23: 1000 | O23: 34978
B24: 成長 | C24: 1685.8 | D24: 3.7 | G24: 6.6 | H24: 0.3 | I24: 1696.4 | K24: 4.9 | L24: 10.3 | M24: 27.3 | N24: 42.5 | O24: 1738.9
A25: 7 | B25: 面積 | C25: 251.31 | D25: 0.15 | G25: 4.65 | H25: 0.11 | I25: 256.22 | M25: 5.24 | N25: 5.24 | O25: 261.46
B26: 蓄積 | C26: 77197 | D26: 23 | G26: 745 | H26: 10 | I26: 77975 | M26: 301 | N26: 301 | O26: 78276
B27: 成長 | C27: 3018.5 | D27: 0.8 | G27: 21.2 | H27: 0.4 | I27: 3040.9 | M27: 9.5 | N27: 9.5 | O27: 3050.4
A28: 8 | B28: 面積 | C28: 497.5 | D28: 5.8 | F28: 2.55 | G28: 30.42 | I28: 536.27 | J28: 0.15 | L28: 0.31 | M28: 8.64 | N28: 9.1 | O28: 545.37
B29: 蓄積 | C29: 175751 | D29: 917 | F29: 472 | G29: 4973 | I29: 182113 | J29: 13 | L29: 22 | M29: 612 | N29: 647 | O29: 182760
B30: 成長 | C30: 5772 | D30: 27.5 | F30: 9.5 | G30: 124 | I30: 5933 | J30: 0.1 | L30: 0.7 | M30: 18.7 | N30: 19.5 | O30: 5952.5
A31: 9 | B31: 面積 | C31: 867.5 | D31: 0.6 | F31: 6.05 | G31: 44.09 | H31: 0.13 | I31: 918.37 | M31: 1.92 | N31: 1.92 | O31: 920.29
B32: 蓄積 | C32: 327567 | D32: 127 | F32: 1248 | G32: 8239 | H32: 16 | I32: 337197 | M32: 150 | N32: 150 | O32: 337347
B33: 成長 | C33: 7684.2 | D33: 2.9 | F33: 18.7 | G33: 165.2 | H33: 0.5 | I33: 7871.5 | M33: 4.4 | N33: 4.4 | O33: 7875.9
A34: 10 | B34: 面積 | C34: 1131.79 | D34: 0.39 | F34: 26.88 | G34: 27.84 | I34: 1186.9 | L34: 0.09 | M34: 7.17 | N34: 7.26 | O34: 1194.16
B35: 蓄積 | C35: 473354 | D35: 88 | F35: 5266 | G35: 6567 | I35: 485275 | L35: 9 | M35: 642 | N35: 651 | O35: 485926
B36: 成長 | C36: 8211.6 | D36: 1.6 | F36: 68.2 | G36: 102.3 | I36: 8383.7 | L36: 0.2 | M36: 16.3 | N36: 16.5 | O36: 8400.2
A37: 11 | B37: 面積 | C37: 1520.05 | D37: 0.11 | F37: 16.48 | G37: 117.48 | H37: 0.05 | I37: 1654.17 | J37: 0.2 | K37: 0.01 | M37: 4.09 | N37: 4.3 | O37: 1658.47
B38: 蓄積 | C38: 698237 | D38: 27 | F38: 3341 | G38: 31838 | H38: 7 | I38: 733450 | J38: 21 | K38: 1 | M38: 330 | N38: 352 | O38: 733802
B39: 成長 | C39: 8651.6 | D39: 0.4 | F39: 37.7 | G39: 450.5 | H39: 0.2 | I39: 9140.4 | J39: 0 | K39: 0 | M39: 6.2 | N39: 6.2 | O39: 9146.6
A40: 12 | B40: 面積 | C40: 1810.17 | F40: 34.42 | G40: 517.97 | I40: 2362.56 | L40: 0.15 | M40: 8.34 | N40: 8.49 | O40: 2371.05
B41: 蓄積 | C41: 901198 | F41: 7704 | G41: 143840 | I41: 1052742 | L41: 16 | M41: 854 | N41: 870 | O41: 1053612
B42: 成長 | C42: 9917.6 | F42: 70.5 | G42: 1879.7 | I42: 11867.8 | L42: 0.3 | M42: 16.8 | N42: 17.1 | O42: 11884.9
A43: 13 | B43: 面積 | C43: 1605.78 | D43: 0.22 | F43: 24.19 | G43: 883.62 | I43: 2513.81 | K43: 50.81 | L43: 0.13 | M43: 8.14 | N43: 59.08 | O43: 2572.89
B44: 蓄積 | C44: 833722 | D44: 60 | F44: 5000 | G44: 255652 | I44: 1094434 | K44: 2847 | L44: 15 | M44: 823 | N44: 3685 | O44: 1098119
B45: 成長 | C45: 8870.1 | D45: 0.8 | F45: 49.5 | G45: 3270.2 | I45: 12190.6 | K45: 68.5 | L45: 0.2 | M45: 14 | N45: 82.7 | O45: 12273.3
A46: 14 | B46: 面積 | C46: 1361.69 | D46: 0.04 | F46: 3.95 | G46: 798.21 | H46: 0.03 | I46: 2163.92 | L46: 0.54 | M46: 31.15 | N46: 31.69 | O46: 2195.61
B47: 蓄積 | C47: 734469 | D47: 12 | F47: 1001 | G47: 239668 | H47: 6 | I47: 975156 | L47: 66 | M47: 3710 | N47: 3776 | O47: 978932
B48: 成長 | C48: 6117.2 | D48: 0.1 | F48: 7.7 | G48: 2592 | H48: 0.1 | I48: 8717.1 | L48: 0.7 | M48: 40.4 | N48: 41.1 | O48: 8758.2
A49: 15 以上 | B49: 面積 | C49: 2743.13 | D49: 38.45 | F49: 4.59 | G49: 600.32 | H49: 9.9 | I49: 3396.39 | K49: 12.32 | L49: 0.88 | M49: 26.4 | N49: 39.6 | O49: 3435.99
B50: 蓄積 | C50: 1568411 | D50: 10553 | F50: 1261 | G50: 192993 | H50: 2191 | I50: 1775409 | K50: 1108 | L50: 112 | M50: 3148 | N50: 4368 | O50: 1779777
B51: 成長 | C51: 7066.5 | D51: 0.5 | F51: 5.6 | G51: 983.4 | H51: 7.9 | I51: 8063.9 | K51: 9.2 | L51: 1 | M51: 14.2 | N51: 24.4 | O51: 8088.3
A52: 計 | B52: 面積 | C52: =SUM(C7,C10,C13,C16,C19,C22,C25,C28,C31,C34,C37,C40,C43,C46,C49) -> 12042.28 | D52: 46.68 | E52: 0 | F52: 119.46 | G52: 3030.26 | H52: 10.58 | I52: 15249.26 | J52: =SUM(J7,J10,J13,J16,J19,J22,J25,J28,J31,J34,J37,J40,J43,J46,J49) -> 0.65 | K52: =SUM(K7,K10,K13,K16,K19,K22,K25,K28,K31,K34,K37,K40,K43,K46,K49) -> 72.79 | L52: =SUM(L7,L10,L13,L16,L19,L22,L25,L28,L31,L34,L37,L40,L43,L46,L49) -> 8.95 | M52: =SUM(M7,M10,M13,M16,M19,M22,M25,M28,M31,M34,M37,M40,M43,M46,M49) -> 147.3 | N52: =SUM(J52:M52) -> 229.69 | O52: 15478.95
B53: 蓄積 | C53: 5843945 | D53: 11993 | E53: 0 | F53: 25318 | G53: 884888 | H53: 2247 | I53: 6768391 | J53: =SUM(J8,J11,J14,J17,J20,J23,J26,J29,J32,J35,J38,J41,J44,J47,J50) -> 52 | K53: 4242 | L53: 547 | M53: 12732 | N53: =SUM(J53:M53) -> 17573 | O53: 6785964
B54: 成長 | C54: 68693.6 | D54: 44.3 | E54: 0 | F54: 269.5 | G54: 9605.2 | H54: 10.2 | I54: 78622.8 | J54: 0.9 | K54: 101.4 | L54: 17 | M54: 251.5 | N54: =SUM(J54:M54) -> 370.8 | O54: 78993.6
